{"text_format":"1","workbook":"xlsx","n_sheets":6,"sheets":["Principal","Main","مصطفي درويش","احمد","محمد","محمود"],"not_rendered":{"charts":0,"images":0,"macros":1,"external_links":0,"defined_names":1,"comments":0,"pivot_tables":0},"unopened":[],"bounds":{"document_bytes":16777216,"sheet_cells":100000,"rows_first":2000,"rows_last":500,"rows_between":2000,"halvings":0,"cell_chars":16384,"cell_head_chars":4096},"cells_cut":0,"cells_raw":0,"read":"whole","date_system":"1900"}

{"sheet":"Principal","index":0,"n_rows":7,"n_cols":9,"rows_kept":7,"cut":false,"hidden":false,"merged":[]}
[]
["م","العملاء","الإجمالى","الواصل","المتبقي","عدد الكميات","تاريخ آخر سداد","عام","حالة السداد"]
[1,"مصطفي درويش",{"$f":"'مصطفي درويش'!H249","v":8500},{"$f":"'مصطفي درويش'!B$249","v":500},{"$f":"C3-D3","v":8000},{"$f":"'مصطفي درويش'!$J$2","v":1},{"$f":"OFFSET('مصطفي درويش'!$D$1,COUNTA('مصطفي درويش'!$D:$D)+1,0)","v":"تاريخ السداد"}]
[2,"احمد"]
[3,"محمد"]
[4,"محمود"]
[5]

{"sheet":"Main","index":1,"n_rows":249,"n_cols":17,"rows_kept":249,"cut":false,"hidden":false,"merged":[[0,0,0,3],[1,13,1,14],[0,15,0,16]]}
[null,null,null,null,null,null,null,null,null,null,null,null,null,null,null,"العملاء"]
[null,{"$f":"SUBTOTAL(9,B4:B248)","v":0},null,null,null,{"$f":"SUBTOTAL(9,B4:B248)","v":0},{"$f":"H2-F2","v":8500},{"$f":"SUBTOTAL(9,H4:H248)","v":8500},{"$f":"SUBTOTAL(9,I4:I248)","v":4950},{"$f":"SUBTOTAL(9,J4:J248)","v":1}]
["م","القسط","السند","تاريخ السداد","تاريخ الاستلام","الواصل","المتبقي","بيع الكميه","شراء الكمية","الكميات","العقد","تاريخ ابتداء","قيمة القسط","اسم الكفيل","صفحات الدفتر","ملاحظلات","الرصيد"]
[1,null,null,null,null,{"$f":"B4","v":0},{"$f":"H$4-F4","v":8500},8500,4950,1,1,"2018-11-26",500,null,null,null,{"$f":"H4-B4","v":8500}]
[2,null,null,null,null,{"$f":"F4+B5","v":0},{"$f":"H$4-F5","v":8500},null,null,null,null,null,null,null,null,null,{"$f":"Q4+H5-B5","v":8500}]
[3,null,null,null,null,{"$f":"F5+B6","v":0},{"$f":"H$4-F6","v":8500},null,null,null,null,null,null,null,null,null,8500]
[4,null,null,null,null,0,8500,null,null,null,null,null,null,null,null,null,8500]
[5,null,null,null,null,0,8500,null,null,null,null,null,null,null,null,null,8500]
[6,null,null,null,null,0,8500,null,null,null,null,null,null,null,null,null,8500]
[7,null,null,null,null,0,8500,null,null,null,null,null,null,null,null,null,8500]
[8,null,null,null,null,0,8500,null,null,null,null,null,null,null,null,null,8500]
[9,null,null,null,null,0,8500,null,null,null,null,null,null,null,null,null,8500]
[10,null,null,null,null,{"$f":"F12+B13","v":0},8500,null,null,null,null,null,null,null,null,null,8500]
[11,null,null,null,null,{"$f":"F13+B14","v":0},8500,null,null,null,null,null,null,null,null,null,8500]
[12,null,null,null,null,{"$f":"F14+B15","v":0},8500,null,null,null,null,null,null,null,null,null,8500]
[null,null,null,null,null,null,null,null,null,null,null,null,null,null,null,null,8500]
[1,0,null,null,null,null,null,null,null,null,null,null,null,null,null,null,8500]
[null,null,null,null,null,null,null,null,null,null,null,null,null,null,null,null,8500]
[null,null,null,null,null,null,null,null,null,null,null,null,null,null,null,null,8500]
[null,null,null,null,null,null,null,null,null,null,null,null,null,null,null,null,8500]
[null,null,null,null,null,null,null,null,null,null,null,null,null,null,null,null,8500]
[null,null,null,null,null,null,null,null,null,null,null,null,null,null,null,null,8500]
[null,null,null,null,null,null,null,null,null,null,null,null,null,null,null,null,8500]
[null,null,null,null,null,null,null,null,null,null,null,null,null,null,null,null,8500]
[null,null,null,null,null,null,null,null,null,null,null,null,null,null,null,null,8500]
[null,null,null,null,null,null,null,null,null,null,null,null,null,null,null,null,8500]
[null,null,null,null,null,null,null,null,null,null,null,null,null,null,null,null,8500]
[null,null,null,null,null,null,null,null,null,null,null,null,null,null,null,null,8500]
[null,null,null,null,null,null,null,null,null,null,null,null,null,null,null,null,8500]
[null,null,null,null,null,null,null,null,null,null,null,null,null,null,null,null,8500]
[null,null,null,null,null,null,null,null,null,null,null,null,null,null,null,null,8500]
[null,null,null,null,null,null,null,null,null,null,null,null,null,null,null,null,8500]
[null,null,null,null,null,null,null,null,null,null,null,null,null,null,null,null,8500]
[null,null,null,null,null,null,null,null,null,null,null,null,null,null,null,null,8500]
[null,null,null,null,null,null,null,null,null,null,null,null,null,null,null,null,8500]
[null,null,null,null,null,null,null,null,null,null,null,null,null,null,null,null,8500]
[null,null,null,null,null,null,null,null,null,null,null,null,null,null,null,null,8500]
[null,null,null,null,null,null,null,null,null,null,null,null,null,null,null,null,8500]
[null,null,null,null,null,null,null,null,null,null,null,null,null,null,null,null,8500]
[null,null,null,null,null,null,null,null,null,null,null,null,null,null,null,null,8500]
[null,null,null,null,null,null,null,null,null,null,null,null,null,null,null,null,8500]
[null,null,null,null,null,null,null,null,null,null,null,null,null,null,null,null,8500]
[null,null,null,null,null,null,null,null,null,null,null,null,null,null,null,null,8500]
[null,null,null,null,null,null,null,null,null,null,null,null,null,null,null,null,8500]
[null,null,null,null,null,null,null,null,null,null,null,null,null,null,null,null,8500]
[null,null,null,null,null,null,null,null,null,null,null,null,null,null,null,null,8500]
[null,null,null,null,null,null,null,null,null,null,null,null,null,null,null,null,8500]
[null,null,null,null,null,null,null,null,null,null,null,null,null,null,null,null,8500]
[null,null,null,null,null,null,null,null,null,null,null,null,null,null,null,null,8500]
[null,null,null,null,null,null,null,null,null,null,null,null,null,null,null,null,8500]
[null,null,null,null,null,null,null,null,null,null,null,null,null,null,null,null,8500]
[null,null,null,null,null,null,null,null,null,null,null,null,null,null,null,null,8500]
[null,null,null,null,null,null,null,null,null,null,null,null,null,null,null,null,8500]
[null,null,null,null,null,null,null,null,null,null,null,null,null,null,null,null,8500]
[null,0,null,null,null,null,null,null,null,null,null,null,null,null,null,null,8500]
[null,0,null,null,null,null,null,null,null,null,null,null,null,null,null,null,8500]
[null,0,null,null,null,null,null,null,null,null,null,null,null,null,null,null,8500]
[null,null,null,null,null,null,null,null,null,null,null,null,null,null,null,null,8500]
[null,null,null,null,null,null,null,null,null,null,null,null,null,null,null,null,8500]
[null,null,null,null,null,null,null,null,null,null,null,null,null,null,null,null,8500]
[null,0,null,null,null,null,null,null,null,null,null,null,null,null,null,null,8500]
[null,0,null,null,null,null,null,null,null,null,null,null,null,null,null,null,8500]
[null,0,null,null,null,null,null,null,null,null,null,null,null,null,null,null,8500]
[null,0,null,null,null,null,null,null,null,null,null,null,null,null,null,null,8500]
[null,null,null,null,null,null,null,null,null,null,null,null,null,null,null,null,8500]
[null,null,null,null,null,null,null,null,null,null,null,null,null,null,null,null,8500]
[null,null,null,null,null,null,null,null,null,null,null,null,null,null,null,null,8500]
[null,null,null,null,null,null,null,null,null,null,null,null,null,null,null,null,8500]
[null,null,null,null,null,null,null,null,null,null,null,null,null,null,null,null,{"$f":"Q68+H69-B69","v":8500}]
[null,null,null,null,null,null,null,null,null,null,null,null,null,null,null,null,8500]
[null,null,null,null,null,null,null,null,null,null,null,null,null,null,null,null,8500]
[null,null,null,null,null,null,null,null,null,null,null,null,null,null,null,null,8500]
[null,null,null,null,null,null,null,null,null,null,null,null,null,null,null,null,8500]
[null,null,null,null,null,null,null,null,null,null,null,null,null,null,null,null,8500]
[null,null,null,null,null,null,null,null,null,null,null,null,null,null,null,null,8500]
[null,null,null,null,null,null,null,null,null,null,null,null,null,null,null,null,8500]
[null,null,null,null,null,null,null,null,null,null,null,null,null,null,null,null,8500]
[null,null,null,null,null,null,null,null,null,null,null,null,null,null,null,null,8500]
[null,null,null,null,null,null,null,null,null,null,null,null,null,null,null,null,8500]
[null,null,null,null,null,null,null,null,null,null,null,null,null,null,null,null,8500]
[null,null,null,null,null,null,null,null,null,null,null,null,null,null,null,null,8500]
[null,null,null,null,null,null,null,null,null,null,null,null,null,null,null,null,8500]
[null,null,null,null,null,null,null,null,null,null,null,null,null,null,null,null,8500]
[null,null,null,null,null,null,null,null,null,null,null,null,null,null,null,null,8500]
[null,null,null,null,null,null,null,null,null,null,null,null,null,null,null,null,8500]
[null,null,null,null,null,null,null,null,null,null,null,null,null,null,null,null,8500]
[null,null,null,null,null,null,null,null,null,null,null,null,null,null,null,null,8500]
[null,null,null,null,null,null,null,null,null,null,null,null,null,null,null,null,8500]
[null,null,null,null,null,null,null,null,null,null,null,null,null,null,null,null,8500]
[null,null,null,null,null,null,null,null,null,null,null,null,null,null,null,null,8500]
[null,null,null,null,null,null,null,null,null,null,null,null,null,null,null,null,8500]
[null,null,null,null,null,null,null,null,null,null,null,null,null,null,null,null,8500]
[null,null,null,null,null,null,null,null,null,null,null,null,null,null,null,null,8500]
[null,null,null,null,null,null,null,null,null,null,null,null,null,null,null,null,8500]
[null,null,null,null,null,null,null,null,null,null,null,null,null,null,null,null,8500]
[null,null,null,null,null,null,null,null,null,null,null,null,null,null,null,null,8500]
[null,null,null,null,null,null,null,null,null,null,null,null,null,null,null,null,8500]
[null,null,null,null,null,null,null,null,null,null,null,null,null,null,null,null,8500]
[null,null,null,null,null,null,null,null,null,null,null,null,null,null,null,null,8500]
[null,null,null,null,null,null,null,null,null,null,null,null,null,null,null,null,8500]
[null,null,null,null,null,null,null,null,null,null,null,null,null,null,null,null,8500]
[null,null,null,null,null,null,null,null,null,null,null,null,null,null,null,null,8500]
[null,null,null,null,null,null,null,null,null,null,null,null,null,null,null,null,8500]
[null,null,null,null,null,null,null,null,null,null,null,null,null,null,null,null,8500]
[null,null,null,null,null,null,null,null,null,null,null,null,null,null,null,null,8500]
[null,null,null,null,null,null,null,null,null,null,null,null,null,null,null,null,8500]
[null,null,null,null,null,null,null,null,null,null,null,null,null,null,null,null,8500]
[null,null,null,null,null,null,null,null,null,null,null,null,null,null,null,null,8500]
[null,null,null,null,null,null,null,null,null,null,null,null,null,null,null,null,8500]
[null,null,null,null,null,null,null,null,null,null,null,null,null,null,null,null,8500]
[null,null,null,null,null,null,null,null,null,null,null,null,null,null,null,null,8500]
[null,null,null,null,null,null,null,null,null,null,null,null,null,null,null,null,8500]
[null,null,null,null,null,null,null,null,null,null,null,null,null,null,null,null,8500]
[null,null,null,null,null,null,null,null,null,null,null,null,null,null,null,null,8500]
[null,null,null,null,null,null,null,null,null,null,null,null,null,null,null,null,8500]
[null,null,null,null,null,null,null,null,null,null,null,null,null,null,null,null,8500]
[null,null,null,null,null,null,null,null,null,null,null,null,null,null,null,null,8500]
[null,null,null,null,null,null,null,null,null,null,null,null,null,null,null,null,8500]
[null,null,null,null,null,null,null,null,null,null,null,null,null,null,null,null,8500]
[null,null,null,null,null,null,null,null,null,null,null,null,null,null,null,null,8500]
[null,null,null,null,null,null,null,null,null,null,null,null,null,null,null,null,8500]
[null,null,null,null,null,null,null,null,null,null,null,null,null,null,null,null,8500]
[null,null,null,null,null,null,null,null,null,null,null,null,null,null,null,null,8500]
[null,null,null,null,null,null,null,null,null,null,null,null,null,null,null,null,8500]
[null,null,null,null,null,null,null,null,null,null,null,null,null,null,null,null,8500]
[null,null,null,null,null,null,null,null,null,null,null,null,null,null,null,null,8500]
[null,null,null,null,null,null,null,null,null,null,null,null,null,null,null,null,8500]
[null,null,null,null,null,null,null,null,null,null,null,null,null,null,null,null,8500]
[null,null,null,null,null,null,null,null,null,null,null,null,null,null,null,null,8500]
[null,null,null,null,null,null,null,null,null,null,null,null,null,null,null,null,8500]
[null,null,null,null,null,null,null,null,null,null,null,null,null,null,null,null,8500]
[null,null,null,null,null,null,null,null,null,null,null,null,null,null,null,null,8500]
[null,null,null,null,null,null,null,null,null,null,null,null,null,null,null,null,{"$f":"Q132+H133-B133","v":8500}]
[null,null,null,null,null,null,null,null,null,null,null,null,null,null,null,null,8500]
[null,null,null,null,null,null,null,null,null,null,null,null,null,null,null,null,8500]
[null,null,null,null,null,null,null,null,null,null,null,null,null,null,null,null,8500]
[null,null,null,null,null,null,null,null,null,null,null,null,null,null,null,null,8500]
[null,null,null,null,null,null,null,null,null,null,null,null,null,null,null,null,8500]
[null,null,null,null,null,null,null,null,null,null,null,null,null,null,null,null,8500]
[null,null,null,null,null,null,null,null,null,null,null,null,null,null,null,null,8500]
[null,null,null,null,null,null,null,null,null,null,null,null,null,null,null,null,8500]
[null,null,null,null,null,null,null,null,null,null,null,null,null,null,null,null,8500]
[null,null,null,null,null,null,null,null,null,null,null,null,null,null,null,null,8500]
[null,null,null,null,null,null,null,null,null,null,null,null,null,null,null,null,8500]
[null,null,null,null,null,null,null,null,null,null,null,null,null,null,null,null,8500]
[null,null,null,null,null,null,null,null,null,null,null,null,null,null,null,null,8500]
[null,null,null,null,null,null,null,null,null,null,null,null,null,null,null,null,8500]
[null,null,null,null,null,null,null,null,null,null,null,null,null,null,null,null,8500]
[null,null,null,null,null,null,null,null,null,null,null,null,null,null,null,null,8500]
[null,null,null,null,null,null,null,null,null,null,null,null,null,null,null,null,8500]
[null,null,null,null,null,null,null,null,null,null,null,null,null,null,null,null,8500]
[null,null,null,null,null,null,null,null,null,null,null,null,null,null,null,null,8500]
[null,null,null,null,null,null,null,null,null,null,null,null,null,null,null,null,8500]
[null,null,null,null,null,null,null,null,null,null,null,null,null,null,null,null,8500]
[null,null,null,null,null,null,null,null,null,null,null,null,null,null,null,null,8500]
[null,null,null,null,null,null,null,null,null,null,null,null,null,null,null,null,8500]
[null,null,null,null,null,null,null,null,null,null,null,null,null,null,null,null,8500]
[null,null,null,null,null,null,null,null,null,null,null,null,null,null,null,null,8500]
[null,null,null,null,null,null,null,null,null,null,null,null,null,null,null,null,8500]
[null,null,null,null,null,null,null,null,null,null,null,null,null,null,null,null,8500]
[null,null,null,null,null,null,null,null,null,null,null,null,null,null,null,null,8500]
[null,null,null,null,null,null,null,null,null,null,null,null,null,null,null,null,8500]
[null,null,null,null,null,null,null,null,null,null,null,null,null,null,null,null,8500]
[null,null,null,null,null,null,null,null,null,null,null,null,null,null,null,null,8500]
[null,null,null,null,null,null,null,null,null,null,null,null,null,null,null,null,8500]
[null,null,null,null,null,null,null,null,null,null,null,null,null,null,null,null,8500]
[null,null,null,null,null,null,null,null,null,null,null,null,null,null,null,null,8500]
[null,null,null,null,null,null,null,null,null,null,null,null,null,null,null,null,8500]
[null,null,null,null,null,null,null,null,null,null,null,null,null,null,null,null,8500]
[null,null,null,null,null,null,null,null,null,null,null,null,null,null,null,null,8500]
[null,null,null,null,null,null,null,null,null,null,null,null,null,null,null,null,8500]
[null,null,null,null,null,null,null,null,null,null,null,null,null,null,null,null,8500]
[null,null,null,null,null,null,null,null,null,null,null,null,null,null,null,null,8500]
[null,null,null,null,null,null,null,null,null,null,null,null,null,null,null,null,8500]
[null,null,null,null,null,null,null,null,null,null,null,null,null,null,null,null,8500]
[null,null,null,null,null,null,null,null,null,null,null,null,null,null,null,null,8500]
[null,null,null,null,null,null,null,null,null,null,null,null,null,null,null,null,8500]
[null,null,null,null,null,null,null,null,null,null,null,null,null,null,null,null,8500]
[null,null,null,null,null,null,null,null,null,null,null,null,null,null,null,null,8500]
[null,null,null,null,null,null,null,null,null,null,null,null,null,null,null,null,8500]
[null,null,null,null,null,null,null,null,null,null,null,null,null,null,null,null,8500]
[null,null,null,null,null,null,null,null,null,null,null,null,null,null,null,null,8500]
[null,null,null,null,null,null,null,null,null,null,null,null,null,null,null,null,8500]
[null,null,null,null,null,null,null,null,null,null,null,null,null,null,null,null,8500]
[null,null,null,null,null,null,null,null,null,null,null,null,null,null,null,null,8500]
[null,null,null,null,null,null,null,null,null,null,null,null,null,null,null,null,8500]
[null,null,null,null,null,null,null,null,null,null,null,null,null,null,null,null,8500]
[null,null,null,null,null,null,null,null,null,null,null,null,null,null,null,null,8500]
[null,null,null,null,null,null,null,null,null,null,null,null,null,null,null,null,8500]
[null,null,null,null,null,null,null,null,null,null,null,null,null,null,null,null,8500]
[null,null,null,null,null,null,null,null,null,null,null,null,null,null,null,null,8500]
[null,null,null,null,null,null,null,null,null,null,null,null,null,null,null,null,8500]
[null,null,null,null,null,null,null,null,null,null,null,null,null,null,null,null,8500]
[null,null,null,null,null,null,null,null,null,null,null,null,null,null,null,null,8500]
[null,null,null,null,null,null,null,null,null,null,null,null,null,null,null,null,8500]
[null,null,null,null,null,null,null,null,null,null,null,null,null,null,null,null,8500]
[null,null,null,null,null,null,null,null,null,null,null,null,null,null,null,null,{"$f":"Q196+H197-B197","v":8500}]
[null,null,null,null,null,null,null,null,null,null,null,null,null,null,null,null,8500]
[null,null,null,null,null,null,null,null,null,null,null,null,null,null,null,null,8500]
[null,null,null,null,null,null,null,null,null,null,null,null,null,null,null,null,8500]
[null,null,null,null,null,null,null,null,null,null,null,null,null,null,null,null,8500]
[null,null,null,null,null,null,null,null,null,null,null,null,null,null,null,null,8500]
[null,null,null,null,null,null,null,null,null,null,null,null,null,null,null,null,8500]
[null,null,null,null,null,null,null,null,null,null,null,null,null,null,null,null,8500]
[null,null,null,null,null,null,null,null,null,null,null,null,null,null,null,null,8500]
[null,null,null,null,null,null,null,null,null,null,null,null,null,null,null,null,8500]
[null,null,null,null,null,null,null,null,null,null,null,null,null,null,null,null,8500]
[null,null,null,null,null,null,null,null,null,null,null,null,null,null,null,null,8500]
[null,null,null,null,null,null,null,null,null,null,null,null,null,null,null,null,8500]
[null,null,null,null,null,null,null,null,null,null,null,null,null,null,null,null,8500]
[null,null,null,null,null,null,null,null,null,null,null,null,null,null,null,null,8500]
[null,null,null,null,null,null,null,null,null,null,null,null,null,null,null,null,8500]
[null,null,null,null,null,null,null,null,null,null,null,null,null,null,null,null,8500]
[null,null,null,null,null,null,null,null,null,null,null,null,null,null,null,null,8500]
[null,null,null,null,null,null,null,null,null,null,null,null,null,null,null,null,8500]
[null,null,null,null,null,null,null,null,null,null,null,null,null,null,null,null,8500]
[null,null,null,null,null,null,null,null,null,null,null,null,null,null,null,null,8500]
[null,null,null,null,null,null,null,null,null,null,null,null,null,null,null,null,8500]
[null,null,null,null,null,null,null,null,null,null,null,null,null,null,null,null,{"$f":"Q29+H219-B219","v":8500}]
[null,null,null,null,null,null,null,null,null,null,null,null,null,null,null,null,{"$f":"Q219+H220-B220","v":8500}]
[null,null,null,null,null,null,null,null,null,null,null,null,null,null,null,null,8500]
[null,null,null,null,null,null,null,null,null,null,null,null,null,null,null,null,8500]
[null,null,null,null,null,null,null,null,null,null,null,null,null,null,null,null,8500]
[null,null,null,null,null,null,null,null,null,null,null,null,null,null,null,null,8500]
[null,null,null,null,null,null,null,null,null,null,null,null,null,null,null,null,8500]
[null,null,null,null,null,null,null,null,null,null,null,null,null,null,null,null,8500]
[null,null,null,null,null,null,null,null,null,null,null,null,null,null,null,null,8500]
[null,null,null,null,null,null,null,null,null,null,null,null,null,null,null,null,8500]
[null,null,null,null,null,null,null,null,null,null,null,null,null,null,null,null,8500]
[null,null,null,null,null,null,null,null,null,null,null,null,null,null,null,null,8500]
[null,null,null,null,null,null,null,null,null,null,null,null,null,null,null,null,8500]
[null,null,null,null,null,null,null,null,null,null,null,null,null,null,null,null,8500]
[null,null,null,null,null,null,null,null,null,null,null,null,null,null,null,null,8500]
[null,null,null,null,null,null,null,null,null,null,null,null,null,null,null,null,8500]
[null,null,null,null,null,null,null,null,null,null,null,null,null,null,null,null,8500]
[null,null,null,null,null,null,null,null,null,null,null,null,null,null,null,null,8500]
[null,null,null,null,null,null,null,null,null,null,null,null,null,null,null,null,8500]
[null,null,null,null,null,null,null,null,null,null,null,null,null,null,null,null,8500]
[null,null,null,null,null,null,null,null,null,null,null,null,null,null,null,null,8500]
[null,null,null,null,null,null,null,null,null,null,null,null,null,null,null,null,8500]
[null,null,null,null,null,null,null,null,null,null,null,null,null,null,null,null,8500]
[null,null,null,null,null,null,null,null,null,null,null,null,null,null,null,null,8500]
[null,null,null,null,null,null,null,null,null,null,null,null,null,null,null,null,8500]
[null,null,null,null,null,null,null,null,null,null,null,null,null,null,null,null,8500]
[null,null,null,null,null,null,null,null,null,null,null,null,null,null,null,null,8500]
[null,null,null,null,null,null,null,null,null,null,null,null,null,null,null,null,8500]
[null,null,null,null,null,null,null,null,null,null,null,null,null,null,null,null,8500]
[null,null,null,null,null,null,null,null,null,null,null,null,null,null,null,null,8500]
["TOTAL",{"$f":"SUM(B4:B248)","v":0},null,null,null,null,{"$f":"SUM(G4:G248)","v":102000},{"$f":"SUM(H4:H248)","v":8500},{"$f":"SUM(I4:I248)","v":4950},{"$f":"SUM(J4:J248)","v":1},null,null,null,null,null,null,{"$f":"SUM(H249-B249)","v":8500}]

{"sheet":"مصطفي درويش","index":2,"n_rows":249,"n_cols":17,"rows_kept":249,"cut":false,"hidden":false,"merged":[[0,0,0,3],[1,13,1,14],[0,15,0,16]]}
["مصطفي درويش",null,null,null,null,null,null,null,null,null,null,null,null,null,null,"العملاء"]
[null,{"$f":"SUBTOTAL(9,B4:B248)","v":500},null,null,null,{"$f":"SUBTOTAL(9,B4:B248)","v":500},{"$f":"H2-F2","v":8000},{"$f":"SUBTOTAL(9,H4:H248)","v":8500},{"$f":"SUBTOTAL(9,I4:I248)","v":4950},{"$f":"SUBTOTAL(9,J4:J248)","v":1}]
["م","القسط","السند","تاريخ السداد","تاريخ الاستلام","الواصل","المتبقي","بيع الكميه","شراء الكمية","الكميات","العقد","تاريخ ابتداء","قيمة القسط","اسم الكفيل","صفحات الدفتر","ملاحظلات","الرصيد"]
[1,500,null,null,null,{"$f":"B4","v":500},{"$f":"H$4-F4","v":8000},8500,4950,1,1,"2018-11-26",500,null,null,null,{"$f":"H4-B4","v":8000}]
[2,null,null,null,null,{"$f":"F4+B5","v":500},{"$f":"H$4-F5","v":8000},null,null,null,null,null,null,null,null,null,{"$f":"Q4+H5-B5","v":8000}]
[3,null,null,null,null,{"$f":"F5+B6","v":500},{"$f":"H$4-F6","v":8000},null,null,null,null,null,null,null,null,null,8000]
[4,null,null,null,null,500,8000,null,null,null,null,null,null,null,null,null,8000]
[5,null,null,null,null,500,8000,null,null,null,null,null,null,null,null,null,8000]
[6,null,null,null,null,500,8000,null,null,null,null,null,null,null,null,null,8000]
[7,null,null,null,null,500,8000,null,null,null,null,null,null,null,null,null,8000]
[8,null,null,null,null,500,8000,null,null,null,null,null,null,null,null,null,8000]
[9,null,null,null,null,500,8000,null,null,null,null,null,null,null,null,null,8000]
[10,null,null,null,null,{"$f":"F12+B13","v":500},8000,null,null,null,null,null,null,null,null,null,8000]
[11,null,null,null,null,{"$f":"F13+B14","v":500},8000,null,null,null,null,null,null,null,null,null,8000]
[12,null,null,null,null,{"$f":"F14+B15","v":500},8000,null,null,null,null,null,null,null,null,null,8000]
[null,null,null,null,null,null,null,null,null,null,null,null,null,null,null,null,8000]
[1,0,null,null,null,null,null,null,null,null,null,null,null,null,null,null,8000]
[null,null,null,null,null,null,null,null,null,null,null,null,null,null,null,null,8000]
[null,null,null,null,null,null,null,null,null,null,null,null,null,null,null,null,8000]
[null,null,null,null,null,null,null,null,null,null,null,null,null,null,null,null,8000]
[null,null,null,null,null,null,null,null,null,null,null,null,null,null,null,null,8000]
[null,null,null,null,null,null,null,null,null,null,null,null,null,null,null,null,8000]
[null,null,null,null,null,null,null,null,null,null,null,null,null,null,null,null,8000]
[null,null,null,null,null,null,null,null,null,null,null,null,null,null,null,null,8000]
[null,null,null,null,null,null,null,null,null,null,null,null,null,null,null,null,8000]
[null,null,null,null,null,null,null,null,null,null,null,null,null,null,null,null,8000]
[null,null,null,null,null,null,null,null,null,null,null,null,null,null,null,null,8000]
[null,null,null,null,null,null,null,null,null,null,null,null,null,null,null,null,8000]
[null,null,null,null,null,null,null,null,null,null,null,null,null,null,null,null,8000]
[null,null,null,null,null,null,null,null,null,null,null,null,null,null,null,null,8000]
[null,null,null,null,null,null,null,null,null,null,null,null,null,null,null,null,8000]
[null,null,null,null,null,null,null,null,null,null,null,null,null,null,null,null,8000]
[null,null,null,null,null,null,null,null,null,null,null,null,null,null,null,null,8000]
[null,null,null,null,null,null,null,null,null,null,null,null,null,null,null,null,8000]
[null,null,null,null,null,null,null,null,null,null,null,null,null,null,null,null,8000]
[null,null,null,null,null,null,null,null,null,null,null,null,null,null,null,null,8000]
[null,null,null,null,null,null,null,null,null,null,null,null,null,null,null,null,8000]
[null,null,null,null,null,null,null,null,null,null,null,null,null,null,null,null,8000]
[null,null,null,null,null,null,null,null,null,null,null,null,null,null,null,null,8000]
[null,null,null,null,null,null,null,null,null,null,null,null,null,null,null,null,8000]
[null,null,null,null,null,null,null,null,null,null,null,null,null,null,null,null,8000]
[null,null,null,null,null,null,null,null,null,null,null,null,null,null,null,null,8000]
[null,null,null,null,null,null,null,null,null,null,null,null,null,null,null,null,8000]
[null,null,null,null,null,null,null,null,null,null,null,null,null,null,null,null,8000]
[null,null,null,null,null,null,null,null,null,null,null,null,null,null,null,null,8000]
[null,null,null,null,null,null,null,null,null,null,null,null,null,null,null,null,8000]
[null,null,null,null,null,null,null,null,null,null,null,null,null,null,null,null,8000]
[null,null,null,null,null,null,null,null,null,null,null,null,null,null,null,null,8000]
[null,null,null,null,null,null,null,null,null,null,null,null,null,null,null,null,8000]
[null,null,null,null,null,null,null,null,null,null,null,null,null,null,null,null,8000]
[null,null,null,null,null,null,null,null,null,null,null,null,null,null,null,null,8000]
[null,null,null,null,null,null,null,null,null,null,null,null,null,null,null,null,8000]
[null,null,null,null,null,null,null,null,null,null,null,null,null,null,null,null,8000]
[null,null,null,null,null,null,null,null,null,null,null,null,null,null,null,null,8000]
[null,0,null,null,null,null,null,null,null,null,null,null,null,null,null,null,8000]
[null,0,null,null,null,null,null,null,null,null,null,null,null,null,null,null,8000]
[null,0,null,null,null,null,null,null,null,null,null,null,null,null,null,null,8000]
[null,null,null,null,null,null,null,null,null,null,null,null,null,null,null,null,8000]
[null,null,null,null,null,null,null,null,null,null,null,null,null,null,null,null,8000]
[null,null,null,null,null,null,null,null,null,null,null,null,null,null,null,null,8000]
[null,0,null,null,null,null,null,null,null,null,null,null,null,null,null,null,8000]
[null,0,null,null,null,null,null,null,null,null,null,null,null,null,null,null,8000]
[null,0,null,null,null,null,null,null,null,null,null,null,null,null,null,null,8000]
[null,0,null,null,null,null,null,null,null,null,null,null,null,null,null,null,8000]
[null,null,null,null,null,null,null,null,null,null,null,null,null,null,null,null,8000]
[null,null,null,null,null,null,null,null,null,null,null,null,null,null,null,null,8000]
[null,null,null,null,null,null,null,null,null,null,null,null,null,null,null,null,8000]
[null,null,null,null,null,null,null,null,null,null,null,null,null,null,null,null,8000]
[null,null,null,null,null,null,null,null,null,null,null,null,null,null,null,null,{"$f":"Q68+H69-B69","v":8000}]
[null,null,null,null,null,null,null,null,null,null,null,null,null,null,null,null,8000]
[null,null,null,null,null,null,null,null,null,null,null,null,null,null,null,null,8000]
[null,null,null,null,null,null,null,null,null,null,null,null,null,null,null,null,8000]
[null,null,null,null,null,null,null,null,null,null,null,null,null,null,null,null,8000]
[null,null,null,null,null,null,null,null,null,null,null,null,null,null,null,null,8000]
[null,null,null,null,null,null,null,null,null,null,null,null,null,null,null,null,8000]
[null,null,null,null,null,null,null,null,null,null,null,null,null,null,null,null,8000]
[null,null,null,null,null,null,null,null,null,null,null,null,null,null,null,null,8000]
[null,null,null,null,null,null,null,null,null,null,null,null,null,null,null,null,8000]
[null,null,null,null,null,null,null,null,null,null,null,null,null,null,null,null,8000]
[null,null,null,null,null,null,null,null,null,null,null,null,null,null,null,null,8000]
[null,null,null,null,null,null,null,null,null,null,null,null,null,null,null,null,8000]
[null,null,null,null,null,null,null,null,null,null,null,null,null,null,null,null,8000]
[null,null,null,null,null,null,null,null,null,null,null,null,null,null,null,null,8000]
[null,null,null,null,null,null,null,null,null,null,null,null,null,null,null,null,8000]
[null,null,null,null,null,null,null,null,null,null,null,null,null,null,null,null,8000]
[null,null,null,null,null,null,null,null,null,null,null,null,null,null,null,null,8000]
[null,null,null,null,null,null,null,null,null,null,null,null,null,null,null,null,8000]
[null,null,null,null,null,null,null,null,null,null,null,null,null,null,null,null,8000]
[null,null,null,null,null,null,null,null,null,null,null,null,null,null,null,null,8000]
[null,null,null,null,null,null,null,null,null,null,null,null,null,null,null,null,8000]
[null,null,null,null,null,null,null,null,null,null,null,null,null,null,null,null,8000]
[null,null,null,null,null,null,null,null,null,null,null,null,null,null,null,null,8000]
[null,null,null,null,null,null,null,null,null,null,null,null,null,null,null,null,8000]
[null,null,null,null,null,null,null,null,null,null,null,null,null,null,null,null,8000]
[null,null,null,null,null,null,null,null,null,null,null,null,null,null,null,null,8000]
[null,null,null,null,null,null,null,null,null,null,null,null,null,null,null,null,8000]
[null,null,null,null,null,null,null,null,null,null,null,null,null,null,null,null,8000]
[null,null,null,null,null,null,null,null,null,null,null,null,null,null,null,null,8000]
[null,null,null,null,null,null,null,null,null,null,null,null,null,null,null,null,8000]
[null,null,null,null,null,null,null,null,null,null,null,null,null,null,null,null,8000]
[null,null,null,null,null,null,null,null,null,null,null,null,null,null,null,null,8000]
[null,null,null,null,null,null,null,null,null,null,null,null,null,null,null,null,8000]
[null,null,null,null,null,null,null,null,null,null,null,null,null,null,null,null,8000]
[null,null,null,null,null,null,null,null,null,null,null,null,null,null,null,null,8000]
[null,null,null,null,null,null,null,null,null,null,null,null,null,null,null,null,8000]
[null,null,null,null,null,null,null,null,null,null,null,null,null,null,null,null,8000]
[null,null,null,null,null,null,null,null,null,null,null,null,null,null,null,null,8000]
[null,null,null,null,null,null,null,null,null,null,null,null,null,null,null,null,8000]
[null,null,null,null,null,null,null,null,null,null,null,null,null,null,null,null,8000]
[null,null,null,null,null,null,null,null,null,null,null,null,null,null,null,null,8000]
[null,null,null,null,null,null,null,null,null,null,null,null,null,null,null,null,8000]
[null,null,null,null,null,null,null,null,null,null,null,null,null,null,null,null,8000]
[null,null,null,null,null,null,null,null,null,null,null,null,null,null,null,null,8000]
[null,null,null,null,null,null,null,null,null,null,null,null,null,null,null,null,8000]
[null,null,null,null,null,null,null,null,null,null,null,null,null,null,null,null,8000]
[null,null,null,null,null,null,null,null,null,null,null,null,null,null,null,null,8000]
[null,null,null,null,null,null,null,null,null,null,null,null,null,null,null,null,8000]
[null,null,null,null,null,null,null,null,null,null,null,null,null,null,null,null,8000]
[null,null,null,null,null,null,null,null,null,null,null,null,null,null,null,null,8000]
[null,null,null,null,null,null,null,null,null,null,null,null,null,null,null,null,8000]
[null,null,null,null,null,null,null,null,null,null,null,null,null,null,null,null,8000]
[null,null,null,null,null,null,null,null,null,null,null,null,null,null,null,null,8000]
[null,null,null,null,null,null,null,null,null,null,null,null,null,null,null,null,8000]
[null,null,null,null,null,null,null,null,null,null,null,null,null,null,null,null,8000]
[null,null,null,null,null,null,null,null,null,null,null,null,null,null,null,null,8000]
[null,null,null,null,null,null,null,null,null,null,null,null,null,null,null,null,8000]
[null,null,null,null,null,null,null,null,null,null,null,null,null,null,null,null,8000]
[null,null,null,null,null,null,null,null,null,null,null,null,null,null,null,null,8000]
[null,null,null,null,null,null,null,null,null,null,null,null,null,null,null,null,8000]
[null,null,null,null,null,null,null,null,null,null,null,null,null,null,null,null,8000]
[null,null,null,null,null,null,null,null,null,null,null,null,null,null,null,null,8000]
[null,null,null,null,null,null,null,null,null,null,null,null,null,null,null,null,8000]
[null,null,null,null,null,null,null,null,null,null,null,null,null,null,null,null,{"$f":"Q132+H133-B133","v":8000}]
[null,null,null,null,null,null,null,null,null,null,null,null,null,null,null,null,8000]
[null,null,null,null,null,null,null,null,null,null,null,null,null,null,null,null,8000]
[null,null,null,null,null,null,null,null,null,null,null,null,null,null,null,null,8000]
[null,null,null,null,null,null,null,null,null,null,null,null,null,null,null,null,8000]
[null,null,null,null,null,null,null,null,null,null,null,null,null,null,null,null,8000]
[null,null,null,null,null,null,null,null,null,null,null,null,null,null,null,null,8000]
[null,null,null,null,null,null,null,null,null,null,null,null,null,null,null,null,8000]
[null,null,null,null,null,null,null,null,null,null,null,null,null,null,null,null,8000]
[null,null,null,null,null,null,null,null,null,null,null,null,null,null,null,null,8000]
[null,null,null,null,null,null,null,null,null,null,null,null,null,null,null,null,8000]
[null,null,null,null,null,null,null,null,null,null,null,null,null,null,null,null,8000]
[null,null,null,null,null,null,null,null,null,null,null,null,null,null,null,null,8000]
[null,null,null,null,null,null,null,null,null,null,null,null,null,null,null,null,8000]
[null,null,null,null,null,null,null,null,null,null,null,null,null,null,null,null,8000]
[null,null,null,null,null,null,null,null,null,null,null,null,null,null,null,null,8000]
[null,null,null,null,null,null,null,null,null,null,null,null,null,null,null,null,8000]
[null,null,null,null,null,null,null,null,null,null,null,null,null,null,null,null,8000]
[null,null,null,null,null,null,null,null,null,null,null,null,null,null,null,null,8000]
[null,null,null,null,null,null,null,null,null,null,null,null,null,null,null,null,8000]
[null,null,null,null,null,null,null,null,null,null,null,null,null,null,null,null,8000]
[null,null,null,null,null,null,null,null,null,null,null,null,null,null,null,null,8000]
[null,null,null,null,null,null,null,null,null,null,null,null,null,null,null,null,8000]
[null,null,null,null,null,null,null,null,null,null,null,null,null,null,null,null,8000]
[null,null,null,null,null,null,null,null,null,null,null,null,null,null,null,null,8000]
[null,null,null,null,null,null,null,null,null,null,null,null,null,null,null,null,8000]
[null,null,null,null,null,null,null,null,null,null,null,null,null,null,null,null,8000]
[null,null,null,null,null,null,null,null,null,null,null,null,null,null,null,null,8000]
[null,null,null,null,null,null,null,null,null,null,null,null,null,null,null,null,8000]
[null,null,null,null,null,null,null,null,null,null,null,null,null,null,null,null,8000]
[null,null,null,null,null,null,null,null,null,null,null,null,null,null,null,null,8000]
[null,null,null,null,null,null,null,null,null,null,null,null,null,null,null,null,8000]
[null,null,null,null,null,null,null,null,null,null,null,null,null,null,null,null,8000]
[null,null,null,null,null,null,null,null,null,null,null,null,null,null,null,null,8000]
[null,null,null,null,null,null,null,null,null,null,null,null,null,null,null,null,8000]
[null,null,null,null,null,null,null,null,null,null,null,null,null,null,null,null,8000]
[null,null,null,null,null,null,null,null,null,null,null,null,null,null,null,null,8000]
[null,null,null,null,null,null,null,null,null,null,null,null,null,null,null,null,8000]
[null,null,null,null,null,null,null,null,null,null,null,null,null,null,null,null,8000]
[null,null,null,null,null,null,null,null,null,null,null,null,null,null,null,null,8000]
[null,null,null,null,null,null,null,null,null,null,null,null,null,null,null,null,8000]
[null,null,null,null,null,null,null,null,null,null,null,null,null,null,null,null,8000]
[null,null,null,null,null,null,null,null,null,null,null,null,null,null,null,null,8000]
[null,null,null,null,null,null,null,null,null,null,null,null,null,null,null,null,8000]
[null,null,null,null,null,null,null,null,null,null,null,null,null,null,null,null,8000]
[null,null,null,null,null,null,null,null,null,null,null,null,null,null,null,null,8000]
[null,null,null,null,null,null,null,null,null,null,null,null,null,null,null,null,8000]
[null,null,null,null,null,null,null,null,null,null,null,null,null,null,null,null,8000]
[null,null,null,null,null,null,null,null,null,null,null,null,null,null,null,null,8000]
[null,null,null,null,null,null,null,null,null,null,null,null,null,null,null,null,8000]
[null,null,null,null,null,null,null,null,null,null,null,null,null,null,null,null,8000]
[null,null,null,null,null,null,null,null,null,null,null,null,null,null,null,null,8000]
[null,null,null,null,null,null,null,null,null,null,null,null,null,null,null,null,8000]
[null,null,null,null,null,null,null,null,null,null,null,null,null,null,null,null,8000]
[null,null,null,null,null,null,null,null,null,null,null,null,null,null,null,null,8000]
[null,null,null,null,null,null,null,null,null,null,null,null,null,null,null,null,8000]
[null,null,null,null,null,null,null,null,null,null,null,null,null,null,null,null,8000]
[null,null,null,null,null,null,null,null,null,null,null,null,null,null,null,null,8000]
[null,null,null,null,null,null,null,null,null,null,null,null,null,null,null,null,8000]
[null,null,null,null,null,null,null,null,null,null,null,null,null,null,null,null,8000]
[null,null,null,null,null,null,null,null,null,null,null,null,null,null,null,null,8000]
[null,null,null,null,null,null,null,null,null,null,null,null,null,null,null,null,8000]
[null,null,null,null,null,null,null,null,null,null,null,null,null,null,null,null,8000]
[null,null,null,null,null,null,null,null,null,null,null,null,null,null,null,null,8000]
[null,null,null,null,null,null,null,null,null,null,null,null,null,null,null,null,{"$f":"Q196+H197-B197","v":8000}]
[null,null,null,null,null,null,null,null,null,null,null,null,null,null,null,null,8000]
[null,null,null,null,null,null,null,null,null,null,null,null,null,null,null,null,8000]
[null,null,null,null,null,null,null,null,null,null,null,null,null,null,null,null,8000]
[null,null,null,null,null,null,null,null,null,null,null,null,null,null,null,null,8000]
[null,null,null,null,null,null,null,null,null,null,null,null,null,null,null,null,8000]
[null,null,null,null,null,null,null,null,null,null,null,null,null,null,null,null,8000]
[null,null,null,null,null,null,null,null,null,null,null,null,null,null,null,null,8000]
[null,null,null,null,null,null,null,null,null,null,null,null,null,null,null,null,8000]
[null,null,null,null,null,null,null,null,null,null,null,null,null,null,null,null,8000]
[null,null,null,null,null,null,null,null,null,null,null,null,null,null,null,null,8000]
[null,null,null,null,null,null,null,null,null,null,null,null,null,null,null,null,8000]
[null,null,null,null,null,null,null,null,null,null,null,null,null,null,null,null,8000]
[null,null,null,null,null,null,null,null,null,null,null,null,null,null,null,null,8000]
[null,null,null,null,null,null,null,null,null,null,null,null,null,null,null,null,8000]
[null,null,null,null,null,null,null,null,null,null,null,null,null,null,null,null,8000]
[null,null,null,null,null,null,null,null,null,null,null,null,null,null,null,null,8000]
[null,null,null,null,null,null,null,null,null,null,null,null,null,null,null,null,8000]
[null,null,null,null,null,null,null,null,null,null,null,null,null,null,null,null,8000]
[null,null,null,null,null,null,null,null,null,null,null,null,null,null,null,null,8000]
[null,null,null,null,null,null,null,null,null,null,null,null,null,null,null,null,8000]
[null,null,null,null,null,null,null,null,null,null,null,null,null,null,null,null,8000]
[null,null,null,null,null,null,null,null,null,null,null,null,null,null,null,null,{"$f":"Q29+H219-B219","v":8000}]
[null,null,null,null,null,null,null,null,null,null,null,null,null,null,null,null,{"$f":"Q219+H220-B220","v":8000}]
[null,null,null,null,null,null,null,null,null,null,null,null,null,null,null,null,8000]
[null,null,null,null,null,null,null,null,null,null,null,null,null,null,null,null,8000]
[null,null,null,null,null,null,null,null,null,null,null,null,null,null,null,null,8000]
[null,null,null,null,null,null,null,null,null,null,null,null,null,null,null,null,8000]
[null,null,null,null,null,null,null,null,null,null,null,null,null,null,null,null,8000]
[null,null,null,null,null,null,null,null,null,null,null,null,null,null,null,null,8000]
[null,null,null,null,null,null,null,null,null,null,null,null,null,null,null,null,8000]
[null,null,null,null,null,null,null,null,null,null,null,null,null,null,null,null,8000]
[null,null,null,null,null,null,null,null,null,null,null,null,null,null,null,null,8000]
[null,null,null,null,null,null,null,null,null,null,null,null,null,null,null,null,8000]
[null,null,null,null,null,null,null,null,null,null,null,null,null,null,null,null,8000]
[null,null,null,null,null,null,null,null,null,null,null,null,null,null,null,null,8000]
[null,null,null,null,null,null,null,null,null,null,null,null,null,null,null,null,8000]
[null,null,null,null,null,null,null,null,null,null,null,null,null,null,null,null,8000]
[null,null,null,null,null,null,null,null,null,null,null,null,null,null,null,null,8000]
[null,null,null,null,null,null,null,null,null,null,null,null,null,null,null,null,8000]
[null,null,null,null,null,null,null,null,null,null,null,null,null,null,null,null,8000]
[null,null,null,null,null,null,null,null,null,null,null,null,null,null,null,null,8000]
[null,null,null,null,null,null,null,null,null,null,null,null,null,null,null,null,8000]
[null,null,null,null,null,null,null,null,null,null,null,null,null,null,null,null,8000]
[null,null,null,null,null,null,null,null,null,null,null,null,null,null,null,null,8000]
[null,null,null,null,null,null,null,null,null,null,null,null,null,null,null,null,8000]
[null,null,null,null,null,null,null,null,null,null,null,null,null,null,null,null,8000]
[null,null,null,null,null,null,null,null,null,null,null,null,null,null,null,null,8000]
[null,null,null,null,null,null,null,null,null,null,null,null,null,null,null,null,8000]
[null,null,null,null,null,null,null,null,null,null,null,null,null,null,null,null,8000]
[null,null,null,null,null,null,null,null,null,null,null,null,null,null,null,null,8000]
[null,null,null,null,null,null,null,null,null,null,null,null,null,null,null,null,8000]
["TOTAL",{"$f":"SUM(B4:B248)","v":500},null,null,null,null,{"$f":"SUM(G4:G248)","v":96000},{"$f":"SUM(H4:H248)","v":8500},{"$f":"SUM(I4:I248)","v":4950},{"$f":"SUM(J4:J248)","v":1},null,null,null,null,null,null,{"$f":"SUM(H249-B249)","v":8000}]

{"sheet":"احمد","index":3,"n_rows":249,"n_cols":17,"rows_kept":249,"cut":false,"hidden":false,"merged":[[0,0,0,3],[0,15,0,16],[1,13,1,14]]}
["احمد",null,null,null,null,null,null,null,null,null,null,null,null,null,null,"العملاء"]
[null,{"$f":"SUBTOTAL(9,B4:B248)","v":0},null,null,null,{"$f":"SUBTOTAL(9,B4:B248)","v":0},{"$f":"H2-F2","v":8500},{"$f":"SUBTOTAL(9,H4:H248)","v":8500},{"$f":"SUBTOTAL(9,I4:I248)","v":4950},{"$f":"SUBTOTAL(9,J4:J248)","v":1}]
["م","القسط","السند","تاريخ السداد","تاريخ الاستلام","الواصل","المتبقي","بيع الكميه","شراء الكمية","الكميات","العقد","تاريخ ابتداء","قيمة القسط","اسم الكفيل","صفحات الدفتر","ملاحظلات","الرصيد"]
[1,null,null,null,null,{"$f":"B4","v":0},{"$f":"H$4-F4","v":8500},8500,4950,1,1,"2018-11-26",500,null,null,null,{"$f":"H4-B4","v":8500}]
[2,null,null,null,null,{"$f":"F4+B5","v":0},{"$f":"H$4-F5","v":8500},null,null,null,null,null,null,null,null,null,{"$f":"Q4+H5-B5","v":8500}]
[3,null,null,null,null,{"$f":"F5+B6","v":0},{"$f":"H$4-F6","v":8500},null,null,null,null,null,null,null,null,null,8500]
[4,null,null,null,null,0,8500,null,null,null,null,null,null,null,null,null,8500]
[5,null,null,null,null,0,8500,null,null,null,null,null,null,null,null,null,8500]
[6,null,null,null,null,0,8500,null,null,null,null,null,null,null,null,null,8500]
[7,null,null,null,null,0,8500,null,null,null,null,null,null,null,null,null,8500]
[8,null,null,null,null,0,8500,null,null,null,null,null,null,null,null,null,8500]
[9,null,null,null,null,0,8500,null,null,null,null,null,null,null,null,null,8500]
[10,null,null,null,null,{"$f":"F12+B13","v":0},8500,null,null,null,null,null,null,null,null,null,8500]
[11,null,null,null,null,{"$f":"F13+B14","v":0},8500,null,null,null,null,null,null,null,null,null,8500]
[12,null,null,null,null,{"$f":"F14+B15","v":0},8500,null,null,null,null,null,null,null,null,null,8500]
[null,null,null,null,null,null,null,null,null,null,null,null,null,null,null,null,8500]
[1,0,null,null,null,null,null,null,null,null,null,null,null,null,null,null,8500]
[null,null,null,null,null,null,null,null,null,null,null,null,null,null,null,null,8500]
[null,null,null,null,null,null,null,null,null,null,null,null,null,null,null,null,8500]
[null,null,null,null,null,null,null,null,null,null,null,null,null,null,null,null,8500]
[null,null,null,null,null,null,null,null,null,null,null,null,null,null,null,null,8500]
[null,null,null,null,null,null,null,null,null,null,null,null,null,null,null,null,8500]
[null,null,null,null,null,null,null,null,null,null,null,null,null,null,null,null,8500]
[null,null,null,null,null,null,null,null,null,null,null,null,null,null,null,null,8500]
[null,null,null,null,null,null,null,null,null,null,null,null,null,null,null,null,8500]
[null,null,null,null,null,null,null,null,null,null,null,null,null,null,null,null,8500]
[null,null,null,null,null,null,null,null,null,null,null,null,null,null,null,null,8500]
[null,null,null,null,null,null,null,null,null,null,null,null,null,null,null,null,8500]
[null,null,null,null,null,null,null,null,null,null,null,null,null,null,null,null,8500]
[null,null,null,null,null,null,null,null,null,null,null,null,null,null,null,null,8500]
[null,null,null,null,null,null,null,null,null,null,null,null,null,null,null,null,8500]
[null,null,null,null,null,null,null,null,null,null,null,null,null,null,null,null,8500]
[null,null,null,null,null,null,null,null,null,null,null,null,null,null,null,null,8500]
[null,null,null,null,null,null,null,null,null,null,null,null,null,null,null,null,8500]
[null,null,null,null,null,null,null,null,null,null,null,null,null,null,null,null,8500]
[null,null,null,null,null,null,null,null,null,null,null,null,null,null,null,null,8500]
[null,null,null,null,null,null,null,null,null,null,null,null,null,null,null,null,8500]
[null,null,null,null,null,null,null,null,null,null,null,null,null,null,null,null,8500]
[null,null,null,null,null,null,null,null,null,null,null,null,null,null,null,null,8500]
[null,null,null,null,null,null,null,null,null,null,null,null,null,null,null,null,8500]
[null,null,null,null,null,null,null,null,null,null,null,null,null,null,null,null,8500]
[null,null,null,null,null,null,null,null,null,null,null,null,null,null,null,null,8500]
[null,null,null,null,null,null,null,null,null,null,null,null,null,null,null,null,8500]
[null,null,null,null,null,null,null,null,null,null,null,null,null,null,null,null,8500]
[null,null,null,null,null,null,null,null,null,null,null,null,null,null,null,null,8500]
[null,null,null,null,null,null,null,null,null,null,null,null,null,null,null,null,8500]
[null,null,null,null,null,null,null,null,null,null,null,null,null,null,null,null,8500]
[null,null,null,null,null,null,null,null,null,null,null,null,null,null,null,null,8500]
[null,null,null,null,null,null,null,null,null,null,null,null,null,null,null,null,8500]
[null,null,null,null,null,null,null,null,null,null,null,null,null,null,null,null,8500]
[null,null,null,null,null,null,null,null,null,null,null,null,null,null,null,null,8500]
[null,null,null,null,null,null,null,null,null,null,null,null,null,null,null,null,8500]
[null,null,null,null,null,null,null,null,null,null,null,null,null,null,null,null,8500]
[null,null,null,null,null,null,null,null,null,null,null,null,null,null,null,null,8500]
[null,0,null,null,null,null,null,null,null,null,null,null,null,null,null,null,8500]
[null,0,null,null,null,null,null,null,null,null,null,null,null,null,null,null,8500]
[null,0,null,null,null,null,null,null,null,null,null,null,null,null,null,null,8500]
[null,null,null,null,null,null,null,null,null,null,null,null,null,null,null,null,8500]
[null,null,null,null,null,null,null,null,null,null,null,null,null,null,null,null,8500]
[null,null,null,null,null,null,null,null,null,null,null,null,null,null,null,null,8500]
[null,0,null,null,null,null,null,null,null,null,null,null,null,null,null,null,8500]
[null,0,null,null,null,null,null,null,null,null,null,null,null,null,null,null,8500]
[null,0,null,null,null,null,null,null,null,null,null,null,null,null,null,null,8500]
[null,0,null,null,null,null,null,null,null,null,null,null,null,null,null,null,8500]
[null,null,null,null,null,null,null,null,null,null,null,null,null,null,null,null,8500]
[null,null,null,null,null,null,null,null,null,null,null,null,null,null,null,null,8500]
[null,null,null,null,null,null,null,null,null,null,null,null,null,null,null,null,8500]
[null,null,null,null,null,null,null,null,null,null,null,null,null,null,null,null,8500]
[null,null,null,null,null,null,null,null,null,null,null,null,null,null,null,null,{"$f":"Q68+H69-B69","v":8500}]
[null,null,null,null,null,null,null,null,null,null,null,null,null,null,null,null,8500]
[null,null,null,null,null,null,null,null,null,null,null,null,null,null,null,null,8500]
[null,null,null,null,null,null,null,null,null,null,null,null,null,null,null,null,8500]
[null,null,null,null,null,null,null,null,null,null,null,null,null,null,null,null,8500]
[null,null,null,null,null,null,null,null,null,null,null,null,null,null,null,null,8500]
[null,null,null,null,null,null,null,null,null,null,null,null,null,null,null,null,8500]
[null,null,null,null,null,null,null,null,null,null,null,null,null,null,null,null,8500]
[null,null,null,null,null,null,null,null,null,null,null,null,null,null,null,null,8500]
[null,null,null,null,null,null,null,null,null,null,null,null,null,null,null,null,8500]
[null,null,null,null,null,null,null,null,null,null,null,null,null,null,null,null,8500]
[null,null,null,null,null,null,null,null,null,null,null,null,null,null,null,null,8500]
[null,null,null,null,null,null,null,null,null,null,null,null,null,null,null,null,8500]
[null,null,null,null,null,null,null,null,null,null,null,null,null,null,null,null,8500]
[null,null,null,null,null,null,null,null,null,null,null,null,null,null,null,null,8500]
[null,null,null,null,null,null,null,null,null,null,null,null,null,null,null,null,8500]
[null,null,null,null,null,null,null,null,null,null,null,null,null,null,null,null,8500]
[null,null,null,null,null,null,null,null,null,null,null,null,null,null,null,null,8500]
[null,null,null,null,null,null,null,null,null,null,null,null,null,null,null,null,8500]
[null,null,null,null,null,null,null,null,null,null,null,null,null,null,null,null,8500]
[null,null,null,null,null,null,null,null,null,null,null,null,null,null,null,null,8500]
[null,null,null,null,null,null,null,null,null,null,null,null,null,null,null,null,8500]
[null,null,null,null,null,null,null,null,null,null,null,null,null,null,null,null,8500]
[null,null,null,null,null,null,null,null,null,null,null,null,null,null,null,null,8500]
[null,null,null,null,null,null,null,null,null,null,null,null,null,null,null,null,8500]
[null,null,null,null,null,null,null,null,null,null,null,null,null,null,null,null,8500]
[null,null,null,null,null,null,null,null,null,null,null,null,null,null,null,null,8500]
[null,null,null,null,null,null,null,null,null,null,null,null,null,null,null,null,8500]
[null,null,null,null,null,null,null,null,null,null,null,null,null,null,null,null,8500]
[null,null,null,null,null,null,null,null,null,null,null,null,null,null,null,null,8500]
[null,null,null,null,null,null,null,null,null,null,null,null,null,null,null,null,8500]
[null,null,null,null,null,null,null,null,null,null,null,null,null,null,null,null,8500]
[null,null,null,null,null,null,null,null,null,null,null,null,null,null,null,null,8500]
[null,null,null,null,null,null,null,null,null,null,null,null,null,null,null,null,8500]
[null,null,null,null,null,null,null,null,null,null,null,null,null,null,null,null,8500]
[null,null,null,null,null,null,null,null,null,null,null,null,null,null,null,null,8500]
[null,null,null,null,null,null,null,null,null,null,null,null,null,null,null,null,8500]
[null,null,null,null,null,null,null,null,null,null,null,null,null,null,null,null,8500]
[null,null,null,null,null,null,null,null,null,null,null,null,null,null,null,null,8500]
[null,null,null,null,null,null,null,null,null,null,null,null,null,null,null,null,8500]
[null,null,null,null,null,null,null,null,null,null,null,null,null,null,null,null,8500]
[null,null,null,null,null,null,null,null,null,null,null,null,null,null,null,null,8500]
[null,null,null,null,null,null,null,null,null,null,null,null,null,null,null,null,8500]
[null,null,null,null,null,null,null,null,null,null,null,null,null,null,null,null,8500]
[null,null,null,null,null,null,null,null,null,null,null,null,null,null,null,null,8500]
[null,null,null,null,null,null,null,null,null,null,null,null,null,null,null,null,8500]
[null,null,null,null,null,null,null,null,null,null,null,null,null,null,null,null,8500]
[null,null,null,null,null,null,null,null,null,null,null,null,null,null,null,null,8500]
[null,null,null,null,null,null,null,null,null,null,null,null,null,null,null,null,8500]
[null,null,null,null,null,null,null,null,null,null,null,null,null,null,null,null,8500]
[null,null,null,null,null,null,null,null,null,null,null,null,null,null,null,null,8500]
[null,null,null,null,null,null,null,null,null,null,null,null,null,null,null,null,8500]
[null,null,null,null,null,null,null,null,null,null,null,null,null,null,null,null,8500]
[null,null,null,null,null,null,null,null,null,null,null,null,null,null,null,null,8500]
[null,null,null,null,null,null,null,null,null,null,null,null,null,null,null,null,8500]
[null,null,null,null,null,null,null,null,null,null,null,null,null,null,null,null,8500]
[null,null,null,null,null,null,null,null,null,null,null,null,null,null,null,null,8500]
[null,null,null,null,null,null,null,null,null,null,null,null,null,null,null,null,8500]
[null,null,null,null,null,null,null,null,null,null,null,null,null,null,null,null,8500]
[null,null,null,null,null,null,null,null,null,null,null,null,null,null,null,null,8500]
[null,null,null,null,null,null,null,null,null,null,null,null,null,null,null,null,8500]
[null,null,null,null,null,null,null,null,null,null,null,null,null,null,null,null,8500]
[null,null,null,null,null,null,null,null,null,null,null,null,null,null,null,null,8500]
[null,null,null,null,null,null,null,null,null,null,null,null,null,null,null,null,8500]
[null,null,null,null,null,null,null,null,null,null,null,null,null,null,null,null,{"$f":"Q132+H133-B133","v":8500}]
[null,null,null,null,null,null,null,null,null,null,null,null,null,null,null,null,8500]
[null,null,null,null,null,null,null,null,null,null,null,null,null,null,null,null,8500]
[null,null,null,null,null,null,null,null,null,null,null,null,null,null,null,null,8500]
[null,null,null,null,null,null,null,null,null,null,null,null,null,null,null,null,8500]
[null,null,null,null,null,null,null,null,null,null,null,null,null,null,null,null,8500]
[null,null,null,null,null,null,null,null,null,null,null,null,null,null,null,null,8500]
[null,null,null,null,null,null,null,null,null,null,null,null,null,null,null,null,8500]
[null,null,null,null,null,null,null,null,null,null,null,null,null,null,null,null,8500]
[null,null,null,null,null,null,null,null,null,null,null,null,null,null,null,null,8500]
[null,null,null,null,null,null,null,null,null,null,null,null,null,null,null,null,8500]
[null,null,null,null,null,null,null,null,null,null,null,null,null,null,null,null,8500]
[null,null,null,null,null,null,null,null,null,null,null,null,null,null,null,null,8500]
[null,null,null,null,null,null,null,null,null,null,null,null,null,null,null,null,8500]
[null,null,null,null,null,null,null,null,null,null,null,null,null,null,null,null,8500]
[null,null,null,null,null,null,null,null,null,null,null,null,null,null,null,null,8500]
[null,null,null,null,null,null,null,null,null,null,null,null,null,null,null,null,8500]
[null,null,null,null,null,null,null,null,null,null,null,null,null,null,null,null,8500]
[null,null,null,null,null,null,null,null,null,null,null,null,null,null,null,null,8500]
[null,null,null,null,null,null,null,null,null,null,null,null,null,null,null,null,8500]
[null,null,null,null,null,null,null,null,null,null,null,null,null,null,null,null,8500]
[null,null,null,null,null,null,null,null,null,null,null,null,null,null,null,null,8500]
[null,null,null,null,null,null,null,null,null,null,null,null,null,null,null,null,8500]
[null,null,null,null,null,null,null,null,null,null,null,null,null,null,null,null,8500]
[null,null,null,null,null,null,null,null,null,null,null,null,null,null,null,null,8500]
[null,null,null,null,null,null,null,null,null,null,null,null,null,null,null,null,8500]
[null,null,null,null,null,null,null,null,null,null,null,null,null,null,null,null,8500]
[null,null,null,null,null,null,null,null,null,null,null,null,null,null,null,null,8500]
[null,null,null,null,null,null,null,null,null,null,null,null,null,null,null,null,8500]
[null,null,null,null,null,null,null,null,null,null,null,null,null,null,null,null,8500]
[null,null,null,null,null,null,null,null,null,null,null,null,null,null,null,null,8500]
[null,null,null,null,null,null,null,null,null,null,null,null,null,null,null,null,8500]
[null,null,null,null,null,null,null,null,null,null,null,null,null,null,null,null,8500]
[null,null,null,null,null,null,null,null,null,null,null,null,null,null,null,null,8500]
[null,null,null,null,null,null,null,null,null,null,null,null,null,null,null,null,8500]
[null,null,null,null,null,null,null,null,null,null,null,null,null,null,null,null,8500]
[null,null,null,null,null,null,null,null,null,null,null,null,null,null,null,null,8500]
[null,null,null,null,null,null,null,null,null,null,null,null,null,null,null,null,8500]
[null,null,null,null,null,null,null,null,null,null,null,null,null,null,null,null,8500]
[null,null,null,null,null,null,null,null,null,null,null,null,null,null,null,null,8500]
[null,null,null,null,null,null,null,null,null,null,null,null,null,null,null,null,8500]
[null,null,null,null,null,null,null,null,null,null,null,null,null,null,null,null,8500]
[null,null,null,null,null,null,null,null,null,null,null,null,null,null,null,null,8500]
[null,null,null,null,null,null,null,null,null,null,null,null,null,null,null,null,8500]
[null,null,null,null,null,null,null,null,null,null,null,null,null,null,null,null,8500]
[null,null,null,null,null,null,null,null,null,null,null,null,null,null,null,null,8500]
[null,null,null,null,null,null,null,null,null,null,null,null,null,null,null,null,8500]
[null,null,null,null,null,null,null,null,null,null,null,null,null,null,null,null,8500]
[null,null,null,null,null,null,null,null,null,null,null,null,null,null,null,null,8500]
[null,null,null,null,null,null,null,null,null,null,null,null,null,null,null,null,8500]
[null,null,null,null,null,null,null,null,null,null,null,null,null,null,null,null,8500]
[null,null,null,null,null,null,null,null,null,null,null,null,null,null,null,null,8500]
[null,null,null,null,null,null,null,null,null,null,null,null,null,null,null,null,8500]
[null,null,null,null,null,null,null,null,null,null,null,null,null,null,null,null,8500]
[null,null,null,null,null,null,null,null,null,null,null,null,null,null,null,null,8500]
[null,null,null,null,null,null,null,null,null,null,null,null,null,null,null,null,8500]
[null,null,null,null,null,null,null,null,null,null,null,null,null,null,null,null,8500]
[null,null,null,null,null,null,null,null,null,null,null,null,null,null,null,null,8500]
[null,null,null,null,null,null,null,null,null,null,null,null,null,null,null,null,8500]
[null,null,null,null,null,null,null,null,null,null,null,null,null,null,null,null,8500]
[null,null,null,null,null,null,null,null,null,null,null,null,null,null,null,null,8500]
[null,null,null,null,null,null,null,null,null,null,null,null,null,null,null,null,8500]
[null,null,null,null,null,null,null,null,null,null,null,null,null,null,null,null,8500]
[null,null,null,null,null,null,null,null,null,null,null,null,null,null,null,null,8500]
[null,null,null,null,null,null,null,null,null,null,null,null,null,null,null,null,{"$f":"Q196+H197-B197","v":8500}]
[null,null,null,null,null,null,null,null,null,null,null,null,null,null,null,null,8500]
[null,null,null,null,null,null,null,null,null,null,null,null,null,null,null,null,8500]
[null,null,null,null,null,null,null,null,null,null,null,null,null,null,null,null,8500]
[null,null,null,null,null,null,null,null,null,null,null,null,null,null,null,null,8500]
[null,null,null,null,null,null,null,null,null,null,null,null,null,null,null,null,8500]
[null,null,null,null,null,null,null,null,null,null,null,null,null,null,null,null,8500]
[null,null,null,null,null,null,null,null,null,null,null,null,null,null,null,null,8500]
[null,null,null,null,null,null,null,null,null,null,null,null,null,null,null,null,8500]
[null,null,null,null,null,null,null,null,null,null,null,null,null,null,null,null,8500]
[null,null,null,null,null,null,null,null,null,null,null,null,null,null,null,null,8500]
[null,null,null,null,null,null,null,null,null,null,null,null,null,null,null,null,8500]
[null,null,null,null,null,null,null,null,null,null,null,null,null,null,null,null,8500]
[null,null,null,null,null,null,null,null,null,null,null,null,null,null,null,null,8500]
[null,null,null,null,null,null,null,null,null,null,null,null,null,null,null,null,8500]
[null,null,null,null,null,null,null,null,null,null,null,null,null,null,null,null,8500]
[null,null,null,null,null,null,null,null,null,null,null,null,null,null,null,null,8500]
[null,null,null,null,null,null,null,null,null,null,null,null,null,null,null,null,8500]
[null,null,null,null,null,null,null,null,null,null,null,null,null,null,null,null,8500]
[null,null,null,null,null,null,null,null,null,null,null,null,null,null,null,null,8500]
[null,null,null,null,null,null,null,null,null,null,null,null,null,null,null,null,8500]
[null,null,null,null,null,null,null,null,null,null,null,null,null,null,null,null,8500]
[null,null,null,null,null,null,null,null,null,null,null,null,null,null,null,null,{"$f":"Q29+H219-B219","v":8500}]
[null,null,null,null,null,null,null,null,null,null,null,null,null,null,null,null,{"$f":"Q219+H220-B220","v":8500}]
[null,null,null,null,null,null,null,null,null,null,null,null,null,null,null,null,8500]
[null,null,null,null,null,null,null,null,null,null,null,null,null,null,null,null,8500]
[null,null,null,null,null,null,null,null,null,null,null,null,null,null,null,null,8500]
[null,null,null,null,null,null,null,null,null,null,null,null,null,null,null,null,8500]
[null,null,null,null,null,null,null,null,null,null,null,null,null,null,null,null,8500]
[null,null,null,null,null,null,null,null,null,null,null,null,null,null,null,null,8500]
[null,null,null,null,null,null,null,null,null,null,null,null,null,null,null,null,8500]
[null,null,null,null,null,null,null,null,null,null,null,null,null,null,null,null,8500]
[null,null,null,null,null,null,null,null,null,null,null,null,null,null,null,null,8500]
[null,null,null,null,null,null,null,null,null,null,null,null,null,null,null,null,8500]
[null,null,null,null,null,null,null,null,null,null,null,null,null,null,null,null,8500]
[null,null,null,null,null,null,null,null,null,null,null,null,null,null,null,null,8500]
[null,null,null,null,null,null,null,null,null,null,null,null,null,null,null,null,8500]
[null,null,null,null,null,null,null,null,null,null,null,null,null,null,null,null,8500]
[null,null,null,null,null,null,null,null,null,null,null,null,null,null,null,null,8500]
[null,null,null,null,null,null,null,null,null,null,null,null,null,null,null,null,8500]
[null,null,null,null,null,null,null,null,null,null,null,null,null,null,null,null,8500]
[null,null,null,null,null,null,null,null,null,null,null,null,null,null,null,null,8500]
[null,null,null,null,null,null,null,null,null,null,null,null,null,null,null,null,8500]
[null,null,null,null,null,null,null,null,null,null,null,null,null,null,null,null,8500]
[null,null,null,null,null,null,null,null,null,null,null,null,null,null,null,null,8500]
[null,null,null,null,null,null,null,null,null,null,null,null,null,null,null,null,8500]
[null,null,null,null,null,null,null,null,null,null,null,null,null,null,null,null,8500]
[null,null,null,null,null,null,null,null,null,null,null,null,null,null,null,null,8500]
[null,null,null,null,null,null,null,null,null,null,null,null,null,null,null,null,8500]
[null,null,null,null,null,null,null,null,null,null,null,null,null,null,null,null,8500]
[null,null,null,null,null,null,null,null,null,null,null,null,null,null,null,null,8500]
[null,null,null,null,null,null,null,null,null,null,null,null,null,null,null,null,8500]
["TOTAL",{"$f":"SUM(B4:B248)","v":0},null,null,null,null,{"$f":"SUM(G4:G248)","v":102000},{"$f":"SUM(H4:H248)","v":8500},{"$f":"SUM(I4:I248)","v":4950},{"$f":"SUM(J4:J248)","v":1},null,null,null,null,null,null,{"$f":"SUM(H249-B249)","v":8500}]

{"sheet":"محمد","index":4,"n_rows":249,"n_cols":17,"rows_kept":249,"cut":false,"hidden":false,"merged":[[0,0,0,3],[0,15,0,16],[1,13,1,14]]}
["محمد",null,null,null,null,null,null,null,null,null,null,null,null,null,null,"العملاء"]
[null,{"$f":"SUBTOTAL(9,B4:B248)","v":0},null,null,null,{"$f":"SUBTOTAL(9,B4:B248)","v":0},{"$f":"H2-F2","v":8500},{"$f":"SUBTOTAL(9,H4:H248)","v":8500},{"$f":"SUBTOTAL(9,I4:I248)","v":4950},{"$f":"SUBTOTAL(9,J4:J248)","v":1}]
["م","القسط","السند","تاريخ السداد","تاريخ الاستلام","الواصل","المتبقي","بيع الكميه","شراء الكمية","الكميات","العقد","تاريخ ابتداء","قيمة القسط","اسم الكفيل","صفحات الدفتر","ملاحظلات","الرصيد"]
[1,null,null,null,null,{"$f":"B4","v":0},{"$f":"H$4-F4","v":8500},8500,4950,1,1,"2018-11-26",500,null,null,null,{"$f":"H4-B4","v":8500}]
[2,null,null,null,null,{"$f":"F4+B5","v":0},{"$f":"H$4-F5","v":8500},null,null,null,null,null,null,null,null,null,{"$f":"Q4+H5-B5","v":8500}]
[3,null,null,null,null,{"$f":"F5+B6","v":0},{"$f":"H$4-F6","v":8500},null,null,null,null,null,null,null,null,null,8500]
[4,null,null,null,null,0,8500,null,null,null,null,null,null,null,null,null,8500]
[5,null,null,null,null,0,8500,null,null,null,null,null,null,null,null,null,8500]
[6,null,null,null,null,0,8500,null,null,null,null,null,null,null,null,null,8500]
[7,null,null,null,null,0,8500,null,null,null,null,null,null,null,null,null,8500]
[8,null,null,null,null,0,8500,null,null,null,null,null,null,null,null,null,8500]
[9,null,null,null,null,0,8500,null,null,null,null,null,null,null,null,null,8500]
[10,null,null,null,null,{"$f":"F12+B13","v":0},8500,null,null,null,null,null,null,null,null,null,8500]
[11,null,null,null,null,{"$f":"F13+B14","v":0},8500,null,null,null,null,null,null,null,null,null,8500]
[12,null,null,null,null,{"$f":"F14+B15","v":0},8500,null,null,null,null,null,null,null,null,null,8500]
[null,null,null,null,null,null,null,null,null,null,null,null,null,null,null,null,8500]
[1,0,null,null,null,null,null,null,null,null,null,null,null,null,null,null,8500]
[null,null,null,null,null,null,null,null,null,null,null,null,null,null,null,null,8500]
[null,null,null,null,null,null,null,null,null,null,null,null,null,null,null,null,8500]
[null,null,null,null,null,null,null,null,null,null,null,null,null,null,null,null,8500]
[null,null,null,null,null,null,null,null,null,null,null,null,null,null,null,null,8500]
[null,null,null,null,null,null,null,null,null,null,null,null,null,null,null,null,8500]
[null,null,null,null,null,null,null,null,null,null,null,null,null,null,null,null,8500]
[null,null,null,null,null,null,null,null,null,null,null,null,null,null,null,null,8500]
[null,null,null,null,null,null,null,null,null,null,null,null,null,null,null,null,8500]
[null,null,null,null,null,null,null,null,null,null,null,null,null,null,null,null,8500]
[null,null,null,null,null,null,null,null,null,null,null,null,null,null,null,null,8500]
[null,null,null,null,null,null,null,null,null,null,null,null,null,null,null,null,8500]
[null,null,null,null,null,null,null,null,null,null,null,null,null,null,null,null,8500]
[null,null,null,null,null,null,null,null,null,null,null,null,null,null,null,null,8500]
[null,null,null,null,null,null,null,null,null,null,null,null,null,null,null,null,8500]
[null,null,null,null,null,null,null,null,null,null,null,null,null,null,null,null,8500]
[null,null,null,null,null,null,null,null,null,null,null,null,null,null,null,null,8500]
[null,null,null,null,null,null,null,null,null,null,null,null,null,null,null,null,8500]
[null,null,null,null,null,null,null,null,null,null,null,null,null,null,null,null,8500]
[null,null,null,null,null,null,null,null,null,null,null,null,null,null,null,null,8500]
[null,null,null,null,null,null,null,null,null,null,null,null,null,null,null,null,8500]
[null,null,null,null,null,null,null,null,null,null,null,null,null,null,null,null,8500]
[null,null,null,null,null,null,null,null,null,null,null,null,null,null,null,null,8500]
[null,null,null,null,null,null,null,null,null,null,null,null,null,null,null,null,8500]
[null,null,null,null,null,null,null,null,null,null,null,null,null,null,null,null,8500]
[null,null,null,null,null,null,null,null,null,null,null,null,null,null,null,null,8500]
[null,null,null,null,null,null,null,null,null,null,null,null,null,null,null,null,8500]
[null,null,null,null,null,null,null,null,null,null,null,null,null,null,null,null,8500]
[null,null,null,null,null,null,null,null,null,null,null,null,null,null,null,null,8500]
[null,null,null,null,null,null,null,null,null,null,null,null,null,null,null,null,8500]
[null,null,null,null,null,null,null,null,null,null,null,null,null,null,null,null,8500]
[null,null,null,null,null,null,null,null,null,null,null,null,null,null,null,null,8500]
[null,null,null,null,null,null,null,null,null,null,null,null,null,null,null,null,8500]
[null,null,null,null,null,null,null,null,null,null,null,null,null,null,null,null,8500]
[null,null,null,null,null,null,null,null,null,null,null,null,null,null,null,null,8500]
[null,null,null,null,null,null,null,null,null,null,null,null,null,null,null,null,8500]
[null,null,null,null,null,null,null,null,null,null,null,null,null,null,null,null,8500]
[null,null,null,null,null,null,null,null,null,null,null,null,null,null,null,null,8500]
[null,0,null,null,null,null,null,null,null,null,null,null,null,null,null,null,8500]
[null,0,null,null,null,null,null,null,null,null,null,null,null,null,null,null,8500]
[null,0,null,null,null,null,null,null,null,null,null,null,null,null,null,null,8500]
[null,null,null,null,null,null,null,null,null,null,null,null,null,null,null,null,8500]
[null,null,null,null,null,null,null,null,null,null,null,null,null,null,null,null,8500]
[null,null,null,null,null,null,null,null,null,null,null,null,null,null,null,null,8500]
[null,0,null,null,null,null,null,null,null,null,null,null,null,null,null,null,8500]
[null,0,null,null,null,null,null,null,null,null,null,null,null,null,null,null,8500]
[null,0,null,null,null,null,null,null,null,null,null,null,null,null,null,null,8500]
[null,0,null,null,null,null,null,null,null,null,null,null,null,null,null,null,8500]
[null,null,null,null,null,null,null,null,null,null,null,null,null,null,null,null,8500]
[null,null,null,null,null,null,null,null,null,null,null,null,null,null,null,null,8500]
[null,null,null,null,null,null,null,null,null,null,null,null,null,null,null,null,8500]
[null,null,null,null,null,null,null,null,null,null,null,null,null,null,null,null,8500]
[null,null,null,null,null,null,null,null,null,null,null,null,null,null,null,null,{"$f":"Q68+H69-B69","v":8500}]
[null,null,null,null,null,null,null,null,null,null,null,null,null,null,null,null,8500]
[null,null,null,null,null,null,null,null,null,null,null,null,null,null,null,null,8500]
[null,null,null,null,null,null,null,null,null,null,null,null,null,null,null,null,8500]
[null,null,null,null,null,null,null,null,null,null,null,null,null,null,null,null,8500]
[null,null,null,null,null,null,null,null,null,null,null,null,null,null,null,null,8500]
[null,null,null,null,null,null,null,null,null,null,null,null,null,null,null,null,8500]
[null,null,null,null,null,null,null,null,null,null,null,null,null,null,null,null,8500]
[null,null,null,null,null,null,null,null,null,null,null,null,null,null,null,null,8500]
[null,null,null,null,null,null,null,null,null,null,null,null,null,null,null,null,8500]
[null,null,null,null,null,null,null,null,null,null,null,null,null,null,null,null,8500]
[null,null,null,null,null,null,null,null,null,null,null,null,null,null,null,null,8500]
[null,null,null,null,null,null,null,null,null,null,null,null,null,null,null,null,8500]
[null,null,null,null,null,null,null,null,null,null,null,null,null,null,null,null,8500]
[null,null,null,null,null,null,null,null,null,null,null,null,null,null,null,null,8500]
[null,null,null,null,null,null,null,null,null,null,null,null,null,null,null,null,8500]
[null,null,null,null,null,null,null,null,null,null,null,null,null,null,null,null,8500]
[null,null,null,null,null,null,null,null,null,null,null,null,null,null,null,null,8500]
[null,null,null,null,null,null,null,null,null,null,null,null,null,null,null,null,8500]
[null,null,null,null,null,null,null,null,null,null,null,null,null,null,null,null,8500]
[null,null,null,null,null,null,null,null,null,null,null,null,null,null,null,null,8500]
[null,null,null,null,null,null,null,null,null,null,null,null,null,null,null,null,8500]
[null,null,null,null,null,null,null,null,null,null,null,null,null,null,null,null,8500]
[null,null,null,null,null,null,null,null,null,null,null,null,null,null,null,null,8500]
[null,null,null,null,null,null,null,null,null,null,null,null,null,null,null,null,8500]
[null,null,null,null,null,null,null,null,null,null,null,null,null,null,null,null,8500]
[null,null,null,null,null,null,null,null,null,null,null,null,null,null,null,null,8500]
[null,null,null,null,null,null,null,null,null,null,null,null,null,null,null,null,8500]
[null,null,null,null,null,null,null,null,null,null,null,null,null,null,null,null,8500]
[null,null,null,null,null,null,null,null,null,null,null,null,null,null,null,null,8500]
[null,null,null,null,null,null,null,null,null,null,null,null,null,null,null,null,8500]
[null,null,null,null,null,null,null,null,null,null,null,null,null,null,null,null,8500]
[null,null,null,null,null,null,null,null,null,null,null,null,null,null,null,null,8500]
[null,null,null,null,null,null,null,null,null,null,null,null,null,null,null,null,8500]
[null,null,null,null,null,null,null,null,null,null,null,null,null,null,null,null,8500]
[null,null,null,null,null,null,null,null,null,null,null,null,null,null,null,null,8500]
[null,null,null,null,null,null,null,null,null,null,null,null,null,null,null,null,8500]
[null,null,null,null,null,null,null,null,null,null,null,null,null,null,null,null,8500]
[null,null,null,null,null,null,null,null,null,null,null,null,null,null,null,null,8500]
[null,null,null,null,null,null,null,null,null,null,null,null,null,null,null,null,8500]
[null,null,null,null,null,null,null,null,null,null,null,null,null,null,null,null,8500]
[null,null,null,null,null,null,null,null,null,null,null,null,null,null,null,null,8500]
[null,null,null,null,null,null,null,null,null,null,null,null,null,null,null,null,8500]
[null,null,null,null,null,null,null,null,null,null,null,null,null,null,null,null,8500]
[null,null,null,null,null,null,null,null,null,null,null,null,null,null,null,null,8500]
[null,null,null,null,null,null,null,null,null,null,null,null,null,null,null,null,8500]
[null,null,null,null,null,null,null,null,null,null,null,null,null,null,null,null,8500]
[null,null,null,null,null,null,null,null,null,null,null,null,null,null,null,null,8500]
[null,null,null,null,null,null,null,null,null,null,null,null,null,null,null,null,8500]
[null,null,null,null,null,null,null,null,null,null,null,null,null,null,null,null,8500]
[null,null,null,null,null,null,null,null,null,null,null,null,null,null,null,null,8500]
[null,null,null,null,null,null,null,null,null,null,null,null,null,null,null,null,8500]
[null,null,null,null,null,null,null,null,null,null,null,null,null,null,null,null,8500]
[null,null,null,null,null,null,null,null,null,null,null,null,null,null,null,null,8500]
[null,null,null,null,null,null,null,null,null,null,null,null,null,null,null,null,8500]
[null,null,null,null,null,null,null,null,null,null,null,null,null,null,null,null,8500]
[null,null,null,null,null,null,null,null,null,null,null,null,null,null,null,null,8500]
[null,null,null,null,null,null,null,null,null,null,null,null,null,null,null,null,8500]
[null,null,null,null,null,null,null,null,null,null,null,null,null,null,null,null,8500]
[null,null,null,null,null,null,null,null,null,null,null,null,null,null,null,null,8500]
[null,null,null,null,null,null,null,null,null,null,null,null,null,null,null,null,8500]
[null,null,null,null,null,null,null,null,null,null,null,null,null,null,null,null,8500]
[null,null,null,null,null,null,null,null,null,null,null,null,null,null,null,null,8500]
[null,null,null,null,null,null,null,null,null,null,null,null,null,null,null,null,8500]
[null,null,null,null,null,null,null,null,null,null,null,null,null,null,null,null,{"$f":"Q132+H133-B133","v":8500}]
[null,null,null,null,null,null,null,null,null,null,null,null,null,null,null,null,8500]
[null,null,null,null,null,null,null,null,null,null,null,null,null,null,null,null,8500]
[null,null,null,null,null,null,null,null,null,null,null,null,null,null,null,null,8500]
[null,null,null,null,null,null,null,null,null,null,null,null,null,null,null,null,8500]
[null,null,null,null,null,null,null,null,null,null,null,null,null,null,null,null,8500]
[null,null,null,null,null,null,null,null,null,null,null,null,null,null,null,null,8500]
[null,null,null,null,null,null,null,null,null,null,null,null,null,null,null,null,8500]
[null,null,null,null,null,null,null,null,null,null,null,null,null,null,null,null,8500]
[null,null,null,null,null,null,null,null,null,null,null,null,null,null,null,null,8500]
[null,null,null,null,null,null,null,null,null,null,null,null,null,null,null,null,8500]
[null,null,null,null,null,null,null,null,null,null,null,null,null,null,null,null,8500]
[null,null,null,null,null,null,null,null,null,null,null,null,null,null,null,null,8500]
[null,null,null,null,null,null,null,null,null,null,null,null,null,null,null,null,8500]
[null,null,null,null,null,null,null,null,null,null,null,null,null,null,null,null,8500]
[null,null,null,null,null,null,null,null,null,null,null,null,null,null,null,null,8500]
[null,null,null,null,null,null,null,null,null,null,null,null,null,null,null,null,8500]
[null,null,null,null,null,null,null,null,null,null,null,null,null,null,null,null,8500]
[null,null,null,null,null,null,null,null,null,null,null,null,null,null,null,null,8500]
[null,null,null,null,null,null,null,null,null,null,null,null,null,null,null,null,8500]
[null,null,null,null,null,null,null,null,null,null,null,null,null,null,null,null,8500]
[null,null,null,null,null,null,null,null,null,null,null,null,null,null,null,null,8500]
[null,null,null,null,null,null,null,null,null,null,null,null,null,null,null,null,8500]
[null,null,null,null,null,null,null,null,null,null,null,null,null,null,null,null,8500]
[null,null,null,null,null,null,null,null,null,null,null,null,null,null,null,null,8500]
[null,null,null,null,null,null,null,null,null,null,null,null,null,null,null,null,8500]
[null,null,null,null,null,null,null,null,null,null,null,null,null,null,null,null,8500]
[null,null,null,null,null,null,null,null,null,null,null,null,null,null,null,null,8500]
[null,null,null,null,null,null,null,null,null,null,null,null,null,null,null,null,8500]
[null,null,null,null,null,null,null,null,null,null,null,null,null,null,null,null,8500]
[null,null,null,null,null,null,null,null,null,null,null,null,null,null,null,null,8500]
[null,null,null,null,null,null,null,null,null,null,null,null,null,null,null,null,8500]
[null,null,null,null,null,null,null,null,null,null,null,null,null,null,null,null,8500]
[null,null,null,null,null,null,null,null,null,null,null,null,null,null,null,null,8500]
[null,null,null,null,null,null,null,null,null,null,null,null,null,null,null,null,8500]
[null,null,null,null,null,null,null,null,null,null,null,null,null,null,null,null,8500]
[null,null,null,null,null,null,null,null,null,null,null,null,null,null,null,null,8500]
[null,null,null,null,null,null,null,null,null,null,null,null,null,null,null,null,8500]
[null,null,null,null,null,null,null,null,null,null,null,null,null,null,null,null,8500]
[null,null,null,null,null,null,null,null,null,null,null,null,null,null,null,null,8500]
[null,null,null,null,null,null,null,null,null,null,null,null,null,null,null,null,8500]
[null,null,null,null,null,null,null,null,null,null,null,null,null,null,null,null,8500]
[null,null,null,null,null,null,null,null,null,null,null,null,null,null,null,null,8500]
[null,null,null,null,null,null,null,null,null,null,null,null,null,null,null,null,8500]
[null,null,null,null,null,null,null,null,null,null,null,null,null,null,null,null,8500]
[null,null,null,null,null,null,null,null,null,null,null,null,null,null,null,null,8500]
[null,null,null,null,null,null,null,null,null,null,null,null,null,null,null,null,8500]
[null,null,null,null,null,null,null,null,null,null,null,null,null,null,null,null,8500]
[null,null,null,null,null,null,null,null,null,null,null,null,null,null,null,null,8500]
[null,null,null,null,null,null,null,null,null,null,null,null,null,null,null,null,8500]
[null,null,null,null,null,null,null,null,null,null,null,null,null,null,null,null,8500]
[null,null,null,null,null,null,null,null,null,null,null,null,null,null,null,null,8500]
[null,null,null,null,null,null,null,null,null,null,null,null,null,null,null,null,8500]
[null,null,null,null,null,null,null,null,null,null,null,null,null,null,null,null,8500]
[null,null,null,null,null,null,null,null,null,null,null,null,null,null,null,null,8500]
[null,null,null,null,null,null,null,null,null,null,null,null,null,null,null,null,8500]
[null,null,null,null,null,null,null,null,null,null,null,null,null,null,null,null,8500]
[null,null,null,null,null,null,null,null,null,null,null,null,null,null,null,null,8500]
[null,null,null,null,null,null,null,null,null,null,null,null,null,null,null,null,8500]
[null,null,null,null,null,null,null,null,null,null,null,null,null,null,null,null,8500]
[null,null,null,null,null,null,null,null,null,null,null,null,null,null,null,null,8500]
[null,null,null,null,null,null,null,null,null,null,null,null,null,null,null,null,8500]
[null,null,null,null,null,null,null,null,null,null,null,null,null,null,null,null,8500]
[null,null,null,null,null,null,null,null,null,null,null,null,null,null,null,null,8500]
[null,null,null,null,null,null,null,null,null,null,null,null,null,null,null,null,{"$f":"Q196+H197-B197","v":8500}]
[null,null,null,null,null,null,null,null,null,null,null,null,null,null,null,null,8500]
[null,null,null,null,null,null,null,null,null,null,null,null,null,null,null,null,8500]
[null,null,null,null,null,null,null,null,null,null,null,null,null,null,null,null,8500]
[null,null,null,null,null,null,null,null,null,null,null,null,null,null,null,null,8500]
[null,null,null,null,null,null,null,null,null,null,null,null,null,null,null,null,8500]
[null,null,null,null,null,null,null,null,null,null,null,null,null,null,null,null,8500]
[null,null,null,null,null,null,null,null,null,null,null,null,null,null,null,null,8500]
[null,null,null,null,null,null,null,null,null,null,null,null,null,null,null,null,8500]
[null,null,null,null,null,null,null,null,null,null,null,null,null,null,null,null,8500]
[null,null,null,null,null,null,null,null,null,null,null,null,null,null,null,null,8500]
[null,null,null,null,null,null,null,null,null,null,null,null,null,null,null,null,8500]
[null,null,null,null,null,null,null,null,null,null,null,null,null,null,null,null,8500]
[null,null,null,null,null,null,null,null,null,null,null,null,null,null,null,null,8500]
[null,null,null,null,null,null,null,null,null,null,null,null,null,null,null,null,8500]
[null,null,null,null,null,null,null,null,null,null,null,null,null,null,null,null,8500]
[null,null,null,null,null,null,null,null,null,null,null,null,null,null,null,null,8500]
[null,null,null,null,null,null,null,null,null,null,null,null,null,null,null,null,8500]
[null,null,null,null,null,null,null,null,null,null,null,null,null,null,null,null,8500]
[null,null,null,null,null,null,null,null,null,null,null,null,null,null,null,null,8500]
[null,null,null,null,null,null,null,null,null,null,null,null,null,null,null,null,8500]
[null,null,null,null,null,null,null,null,null,null,null,null,null,null,null,null,8500]
[null,null,null,null,null,null,null,null,null,null,null,null,null,null,null,null,{"$f":"Q29+H219-B219","v":8500}]
[null,null,null,null,null,null,null,null,null,null,null,null,null,null,null,null,{"$f":"Q219+H220-B220","v":8500}]
[null,null,null,null,null,null,null,null,null,null,null,null,null,null,null,null,8500]
[null,null,null,null,null,null,null,null,null,null,null,null,null,null,null,null,8500]
[null,null,null,null,null,null,null,null,null,null,null,null,null,null,null,null,8500]
[null,null,null,null,null,null,null,null,null,null,null,null,null,null,null,null,8500]
[null,null,null,null,null,null,null,null,null,null,null,null,null,null,null,null,8500]
[null,null,null,null,null,null,null,null,null,null,null,null,null,null,null,null,8500]
[null,null,null,null,null,null,null,null,null,null,null,null,null,null,null,null,8500]
[null,null,null,null,null,null,null,null,null,null,null,null,null,null,null,null,8500]
[null,null,null,null,null,null,null,null,null,null,null,null,null,null,null,null,8500]
[null,null,null,null,null,null,null,null,null,null,null,null,null,null,null,null,8500]
[null,null,null,null,null,null,null,null,null,null,null,null,null,null,null,null,8500]
[null,null,null,null,null,null,null,null,null,null,null,null,null,null,null,null,8500]
[null,null,null,null,null,null,null,null,null,null,null,null,null,null,null,null,8500]
[null,null,null,null,null,null,null,null,null,null,null,null,null,null,null,null,8500]
[null,null,null,null,null,null,null,null,null,null,null,null,null,null,null,null,8500]
[null,null,null,null,null,null,null,null,null,null,null,null,null,null,null,null,8500]
[null,null,null,null,null,null,null,null,null,null,null,null,null,null,null,null,8500]
[null,null,null,null,null,null,null,null,null,null,null,null,null,null,null,null,8500]
[null,null,null,null,null,null,null,null,null,null,null,null,null,null,null,null,8500]
[null,null,null,null,null,null,null,null,null,null,null,null,null,null,null,null,8500]
[null,null,null,null,null,null,null,null,null,null,null,null,null,null,null,null,8500]
[null,null,null,null,null,null,null,null,null,null,null,null,null,null,null,null,8500]
[null,null,null,null,null,null,null,null,null,null,null,null,null,null,null,null,8500]
[null,null,null,null,null,null,null,null,null,null,null,null,null,null,null,null,8500]
[null,null,null,null,null,null,null,null,null,null,null,null,null,null,null,null,8500]
[null,null,null,null,null,null,null,null,null,null,null,null,null,null,null,null,8500]
[null,null,null,null,null,null,null,null,null,null,null,null,null,null,null,null,8500]
[null,null,null,null,null,null,null,null,null,null,null,null,null,null,null,null,8500]
["TOTAL",{"$f":"SUM(B4:B248)","v":0},null,null,null,null,{"$f":"SUM(G4:G248)","v":102000},{"$f":"SUM(H4:H248)","v":8500},{"$f":"SUM(I4:I248)","v":4950},{"$f":"SUM(J4:J248)","v":1},null,null,null,null,null,null,{"$f":"SUM(H249-B249)","v":8500}]

{"sheet":"محمود","index":5,"n_rows":249,"n_cols":17,"rows_kept":249,"cut":false,"hidden":false,"merged":[[0,0,0,3],[0,15,0,16],[1,13,1,14]]}
["محمود",null,null,null,null,null,null,null,null,null,null,null,null,null,null,"العملاء"]
[null,{"$f":"SUBTOTAL(9,B4:B248)","v":0},null,null,null,{"$f":"SUBTOTAL(9,B4:B248)","v":0},{"$f":"H2-F2","v":8500},{"$f":"SUBTOTAL(9,H4:H248)","v":8500},{"$f":"SUBTOTAL(9,I4:I248)","v":4950},{"$f":"SUBTOTAL(9,J4:J248)","v":1}]
["م","القسط","السند","تاريخ السداد","تاريخ الاستلام","الواصل","المتبقي","بيع الكميه","شراء الكمية","الكميات","العقد","تاريخ ابتداء","قيمة القسط","اسم الكفيل","صفحات الدفتر","ملاحظلات","الرصيد"]
[1,null,null,null,null,{"$f":"B4","v":0},{"$f":"H$4-F4","v":8500},8500,4950,1,1,"2018-11-26",500,null,null,null,{"$f":"H4-B4","v":8500}]
[2,null,null,null,null,{"$f":"F4+B5","v":0},{"$f":"H$4-F5","v":8500},null,null,null,null,null,null,null,null,null,{"$f":"Q4+H5-B5","v":8500}]
[3,null,null,null,null,{"$f":"F5+B6","v":0},{"$f":"H$4-F6","v":8500},null,null,null,null,null,null,null,null,null,8500]
[4,null,null,null,null,0,8500,null,null,null,null,null,null,null,null,null,8500]
[5,null,null,null,null,0,8500,null,null,null,null,null,null,null,null,null,8500]
[6,null,null,null,null,0,8500,null,null,null,null,null,null,null,null,null,8500]
[7,null,null,null,null,0,8500,null,null,null,null,null,null,null,null,null,8500]
[8,null,null,null,null,0,8500,null,null,null,null,null,null,null,null,null,8500]
[9,null,null,null,null,0,8500,null,null,null,null,null,null,null,null,null,8500]
[10,null,null,null,null,{"$f":"F12+B13","v":0},8500,null,null,null,null,null,null,null,null,null,8500]
[11,null,null,null,null,{"$f":"F13+B14","v":0},8500,null,null,null,null,null,null,null,null,null,8500]
[12,null,null,null,null,{"$f":"F14+B15","v":0},8500,null,null,null,null,null,null,null,null,null,8500]
[null,null,null,null,null,null,null,null,null,null,null,null,null,null,null,null,8500]
[1,0,null,null,null,null,null,null,null,null,null,null,null,null,null,null,8500]
[null,null,null,null,null,null,null,null,null,null,null,null,null,null,null,null,8500]
[null,null,null,null,null,null,null,null,null,null,null,null,null,null,null,null,8500]
[null,null,null,null,null,null,null,null,null,null,null,null,null,null,null,null,8500]
[null,null,null,null,null,null,null,null,null,null,null,null,null,null,null,null,8500]
[null,null,null,null,null,null,null,null,null,null,null,null,null,null,null,null,8500]
[null,null,null,null,null,null,null,null,null,null,null,null,null,null,null,null,8500]
[null,null,null,null,null,null,null,null,null,null,null,null,null,null,null,null,8500]
[null,null,null,null,null,null,null,null,null,null,null,null,null,null,null,null,8500]
[null,null,null,null,null,null,null,null,null,null,null,null,null,null,null,null,8500]
[null,null,null,null,null,null,null,null,null,null,null,null,null,null,null,null,8500]
[null,null,null,null,null,null,null,null,null,null,null,null,null,null,null,null,8500]
[null,null,null,null,null,null,null,null,null,null,null,null,null,null,null,null,8500]
[null,null,null,null,null,null,null,null,null,null,null,null,null,null,null,null,8500]
[null,null,null,null,null,null,null,null,null,null,null,null,null,null,null,null,8500]
[null,null,null,null,null,null,null,null,null,null,null,null,null,null,null,null,8500]
[null,null,null,null,null,null,null,null,null,null,null,null,null,null,null,null,8500]
[null,null,null,null,null,null,null,null,null,null,null,null,null,null,null,null,8500]
[null,null,null,null,null,null,null,null,null,null,null,null,null,null,null,null,8500]
[null,null,null,null,null,null,null,null,null,null,null,null,null,null,null,null,8500]
[null,null,null,null,null,null,null,null,null,null,null,null,null,null,null,null,8500]
[null,null,null,null,null,null,null,null,null,null,null,null,null,null,null,null,8500]
[null,null,null,null,null,null,null,null,null,null,null,null,null,null,null,null,8500]
[null,null,null,null,null,null,null,null,null,null,null,null,null,null,null,null,8500]
[null,null,null,null,null,null,null,null,null,null,null,null,null,null,null,null,8500]
[null,null,null,null,null,null,null,null,null,null,null,null,null,null,null,null,8500]
[null,null,null,null,null,null,null,null,null,null,null,null,null,null,null,null,8500]
[null,null,null,null,null,null,null,null,null,null,null,null,null,null,null,null,8500]
[null,null,null,null,null,null,null,null,null,null,null,null,null,null,null,null,8500]
[null,null,null,null,null,null,null,null,null,null,null,null,null,null,null,null,8500]
[null,null,null,null,null,null,null,null,null,null,null,null,null,null,null,null,8500]
[null,null,null,null,null,null,null,null,null,null,null,null,null,null,null,null,8500]
[null,null,null,null,null,null,null,null,null,null,null,null,null,null,null,null,8500]
[null,null,null,null,null,null,null,null,null,null,null,null,null,null,null,null,8500]
[null,null,null,null,null,null,null,null,null,null,null,null,null,null,null,null,8500]
[null,null,null,null,null,null,null,null,null,null,null,null,null,null,null,null,8500]
[null,null,null,null,null,null,null,null,null,null,null,null,null,null,null,null,8500]
[null,null,null,null,null,null,null,null,null,null,null,null,null,null,null,null,8500]
[null,0,null,null,null,null,null,null,null,null,null,null,null,null,null,null,8500]
[null,0,null,null,null,null,null,null,null,null,null,null,null,null,null,null,8500]
[null,0,null,null,null,null,null,null,null,null,null,null,null,null,null,null,8500]
[null,null,null,null,null,null,null,null,null,null,null,null,null,null,null,null,8500]
[null,null,null,null,null,null,null,null,null,null,null,null,null,null,null,null,8500]
[null,null,null,null,null,null,null,null,null,null,null,null,null,null,null,null,8500]
[null,0,null,null,null,null,null,null,null,null,null,null,null,null,null,null,8500]
[null,0,null,null,null,null,null,null,null,null,null,null,null,null,null,null,8500]
[null,0,null,null,null,null,null,null,null,null,null,null,null,null,null,null,8500]
[null,0,null,null,null,null,null,null,null,null,null,null,null,null,null,null,8500]
[null,null,null,null,null,null,null,null,null,null,null,null,null,null,null,null,8500]
[null,null,null,null,null,null,null,null,null,null,null,null,null,null,null,null,8500]
[null,null,null,null,null,null,null,null,null,null,null,null,null,null,null,null,8500]
[null,null,null,null,null,null,null,null,null,null,null,null,null,null,null,null,8500]
[null,null,null,null,null,null,null,null,null,null,null,null,null,null,null,null,{"$f":"Q68+H69-B69","v":8500}]
[null,null,null,null,null,null,null,null,null,null,null,null,null,null,null,null,8500]
[null,null,null,null,null,null,null,null,null,null,null,null,null,null,null,null,8500]
[null,null,null,null,null,null,null,null,null,null,null,null,null,null,null,null,8500]
[null,null,null,null,null,null,null,null,null,null,null,null,null,null,null,null,8500]
[null,null,null,null,null,null,null,null,null,null,null,null,null,null,null,null,8500]
[null,null,null,null,null,null,null,null,null,null,null,null,null,null,null,null,8500]
[null,null,null,null,null,null,null,null,null,null,null,null,null,null,null,null,8500]
[null,null,null,null,null,null,null,null,null,null,null,null,null,null,null,null,8500]
[null,null,null,null,null,null,null,null,null,null,null,null,null,null,null,null,8500]
[null,null,null,null,null,null,null,null,null,null,null,null,null,null,null,null,8500]
[null,null,null,null,null,null,null,null,null,null,null,null,null,null,null,null,8500]
[null,null,null,null,null,null,null,null,null,null,null,null,null,null,null,null,8500]
[null,null,null,null,null,null,null,null,null,null,null,null,null,null,null,null,8500]
[null,null,null,null,null,null,null,null,null,null,null,null,null,null,null,null,8500]
[null,null,null,null,null,null,null,null,null,null,null,null,null,null,null,null,8500]
[null,null,null,null,null,null,null,null,null,null,null,null,null,null,null,null,8500]
[null,null,null,null,null,null,null,null,null,null,null,null,null,null,null,null,8500]
[null,null,null,null,null,null,null,null,null,null,null,null,null,null,null,null,8500]
[null,null,null,null,null,null,null,null,null,null,null,null,null,null,null,null,8500]
[null,null,null,null,null,null,null,null,null,null,null,null,null,null,null,null,8500]
[null,null,null,null,null,null,null,null,null,null,null,null,null,null,null,null,8500]
[null,null,null,null,null,null,null,null,null,null,null,null,null,null,null,null,8500]
[null,null,null,null,null,null,null,null,null,null,null,null,null,null,null,null,8500]
[null,null,null,null,null,null,null,null,null,null,null,null,null,null,null,null,8500]
[null,null,null,null,null,null,null,null,null,null,null,null,null,null,null,null,8500]
[null,null,null,null,null,null,null,null,null,null,null,null,null,null,null,null,8500]
[null,null,null,null,null,null,null,null,null,null,null,null,null,null,null,null,8500]
[null,null,null,null,null,null,null,null,null,null,null,null,null,null,null,null,8500]
[null,null,null,null,null,null,null,null,null,null,null,null,null,null,null,null,8500]
[null,null,null,null,null,null,null,null,null,null,null,null,null,null,null,null,8500]
[null,null,null,null,null,null,null,null,null,null,null,null,null,null,null,null,8500]
[null,null,null,null,null,null,null,null,null,null,null,null,null,null,null,null,8500]
[null,null,null,null,null,null,null,null,null,null,null,null,null,null,null,null,8500]
[null,null,null,null,null,null,null,null,null,null,null,null,null,null,null,null,8500]
[null,null,null,null,null,null,null,null,null,null,null,null,null,null,null,null,8500]
[null,null,null,null,null,null,null,null,null,null,null,null,null,null,null,null,8500]
[null,null,null,null,null,null,null,null,null,null,null,null,null,null,null,null,8500]
[null,null,null,null,null,null,null,null,null,null,null,null,null,null,null,null,8500]
[null,null,null,null,null,null,null,null,null,null,null,null,null,null,null,null,8500]
[null,null,null,null,null,null,null,null,null,null,null,null,null,null,null,null,8500]
[null,null,null,null,null,null,null,null,null,null,null,null,null,null,null,null,8500]
[null,null,null,null,null,null,null,null,null,null,null,null,null,null,null,null,8500]
[null,null,null,null,null,null,null,null,null,null,null,null,null,null,null,null,8500]
[null,null,null,null,null,null,null,null,null,null,null,null,null,null,null,null,8500]
[null,null,null,null,null,null,null,null,null,null,null,null,null,null,null,null,8500]
[null,null,null,null,null,null,null,null,null,null,null,null,null,null,null,null,8500]
[null,null,null,null,null,null,null,null,null,null,null,null,null,null,null,null,8500]
[null,null,null,null,null,null,null,null,null,null,null,null,null,null,null,null,8500]
[null,null,null,null,null,null,null,null,null,null,null,null,null,null,null,null,8500]
[null,null,null,null,null,null,null,null,null,null,null,null,null,null,null,null,8500]
[null,null,null,null,null,null,null,null,null,null,null,null,null,null,null,null,8500]
[null,null,null,null,null,null,null,null,null,null,null,null,null,null,null,null,8500]
[null,null,null,null,null,null,null,null,null,null,null,null,null,null,null,null,8500]
[null,null,null,null,null,null,null,null,null,null,null,null,null,null,null,null,8500]
[null,null,null,null,null,null,null,null,null,null,null,null,null,null,null,null,8500]
[null,null,null,null,null,null,null,null,null,null,null,null,null,null,null,null,8500]
[null,null,null,null,null,null,null,null,null,null,null,null,null,null,null,null,8500]
[null,null,null,null,null,null,null,null,null,null,null,null,null,null,null,null,8500]
[null,null,null,null,null,null,null,null,null,null,null,null,null,null,null,null,8500]
[null,null,null,null,null,null,null,null,null,null,null,null,null,null,null,null,8500]
[null,null,null,null,null,null,null,null,null,null,null,null,null,null,null,null,8500]
[null,null,null,null,null,null,null,null,null,null,null,null,null,null,null,null,8500]
[null,null,null,null,null,null,null,null,null,null,null,null,null,null,null,null,8500]
[null,null,null,null,null,null,null,null,null,null,null,null,null,null,null,null,{"$f":"Q132+H133-B133","v":8500}]
[null,null,null,null,null,null,null,null,null,null,null,null,null,null,null,null,8500]
[null,null,null,null,null,null,null,null,null,null,null,null,null,null,null,null,8500]
[null,null,null,null,null,null,null,null,null,null,null,null,null,null,null,null,8500]
[null,null,null,null,null,null,null,null,null,null,null,null,null,null,null,null,8500]
[null,null,null,null,null,null,null,null,null,null,null,null,null,null,null,null,8500]
[null,null,null,null,null,null,null,null,null,null,null,null,null,null,null,null,8500]
[null,null,null,null,null,null,null,null,null,null,null,null,null,null,null,null,8500]
[null,null,null,null,null,null,null,null,null,null,null,null,null,null,null,null,8500]
[null,null,null,null,null,null,null,null,null,null,null,null,null,null,null,null,8500]
[null,null,null,null,null,null,null,null,null,null,null,null,null,null,null,null,8500]
[null,null,null,null,null,null,null,null,null,null,null,null,null,null,null,null,8500]
[null,null,null,null,null,null,null,null,null,null,null,null,null,null,null,null,8500]
[null,null,null,null,null,null,null,null,null,null,null,null,null,null,null,null,8500]
[null,null,null,null,null,null,null,null,null,null,null,null,null,null,null,null,8500]
[null,null,null,null,null,null,null,null,null,null,null,null,null,null,null,null,8500]
[null,null,null,null,null,null,null,null,null,null,null,null,null,null,null,null,8500]
[null,null,null,null,null,null,null,null,null,null,null,null,null,null,null,null,8500]
[null,null,null,null,null,null,null,null,null,null,null,null,null,null,null,null,8500]
[null,null,null,null,null,null,null,null,null,null,null,null,null,null,null,null,8500]
[null,null,null,null,null,null,null,null,null,null,null,null,null,null,null,null,8500]
[null,null,null,null,null,null,null,null,null,null,null,null,null,null,null,null,8500]
[null,null,null,null,null,null,null,null,null,null,null,null,null,null,null,null,8500]
[null,null,null,null,null,null,null,null,null,null,null,null,null,null,null,null,8500]
[null,null,null,null,null,null,null,null,null,null,null,null,null,null,null,null,8500]
[null,null,null,null,null,null,null,null,null,null,null,null,null,null,null,null,8500]
[null,null,null,null,null,null,null,null,null,null,null,null,null,null,null,null,8500]
[null,null,null,null,null,null,null,null,null,null,null,null,null,null,null,null,8500]
[null,null,null,null,null,null,null,null,null,null,null,null,null,null,null,null,8500]
[null,null,null,null,null,null,null,null,null,null,null,null,null,null,null,null,8500]
[null,null,null,null,null,null,null,null,null,null,null,null,null,null,null,null,8500]
[null,null,null,null,null,null,null,null,null,null,null,null,null,null,null,null,8500]
[null,null,null,null,null,null,null,null,null,null,null,null,null,null,null,null,8500]
[null,null,null,null,null,null,null,null,null,null,null,null,null,null,null,null,8500]
[null,null,null,null,null,null,null,null,null,null,null,null,null,null,null,null,8500]
[null,null,null,null,null,null,null,null,null,null,null,null,null,null,null,null,8500]
[null,null,null,null,null,null,null,null,null,null,null,null,null,null,null,null,8500]
[null,null,null,null,null,null,null,null,null,null,null,null,null,null,null,null,8500]
[null,null,null,null,null,null,null,null,null,null,null,null,null,null,null,null,8500]
[null,null,null,null,null,null,null,null,null,null,null,null,null,null,null,null,8500]
[null,null,null,null,null,null,null,null,null,null,null,null,null,null,null,null,8500]
[null,null,null,null,null,null,null,null,null,null,null,null,null,null,null,null,8500]
[null,null,null,null,null,null,null,null,null,null,null,null,null,null,null,null,8500]
[null,null,null,null,null,null,null,null,null,null,null,null,null,null,null,null,8500]
[null,null,null,null,null,null,null,null,null,null,null,null,null,null,null,null,8500]
[null,null,null,null,null,null,null,null,null,null,null,null,null,null,null,null,8500]
[null,null,null,null,null,null,null,null,null,null,null,null,null,null,null,null,8500]
[null,null,null,null,null,null,null,null,null,null,null,null,null,null,null,null,8500]
[null,null,null,null,null,null,null,null,null,null,null,null,null,null,null,null,8500]
[null,null,null,null,null,null,null,null,null,null,null,null,null,null,null,null,8500]
[null,null,null,null,null,null,null,null,null,null,null,null,null,null,null,null,8500]
[null,null,null,null,null,null,null,null,null,null,null,null,null,null,null,null,8500]
[null,null,null,null,null,null,null,null,null,null,null,null,null,null,null,null,8500]
[null,null,null,null,null,null,null,null,null,null,null,null,null,null,null,null,8500]
[null,null,null,null,null,null,null,null,null,null,null,null,null,null,null,null,8500]
[null,null,null,null,null,null,null,null,null,null,null,null,null,null,null,null,8500]
[null,null,null,null,null,null,null,null,null,null,null,null,null,null,null,null,8500]
[null,null,null,null,null,null,null,null,null,null,null,null,null,null,null,null,8500]
[null,null,null,null,null,null,null,null,null,null,null,null,null,null,null,null,8500]
[null,null,null,null,null,null,null,null,null,null,null,null,null,null,null,null,8500]
[null,null,null,null,null,null,null,null,null,null,null,null,null,null,null,null,8500]
[null,null,null,null,null,null,null,null,null,null,null,null,null,null,null,null,8500]
[null,null,null,null,null,null,null,null,null,null,null,null,null,null,null,null,8500]
[null,null,null,null,null,null,null,null,null,null,null,null,null,null,null,null,8500]
[null,null,null,null,null,null,null,null,null,null,null,null,null,null,null,null,{"$f":"Q196+H197-B197","v":8500}]
[null,null,null,null,null,null,null,null,null,null,null,null,null,null,null,null,8500]
[null,null,null,null,null,null,null,null,null,null,null,null,null,null,null,null,8500]
[null,null,null,null,null,null,null,null,null,null,null,null,null,null,null,null,8500]
[null,null,null,null,null,null,null,null,null,null,null,null,null,null,null,null,8500]
[null,null,null,null,null,null,null,null,null,null,null,null,null,null,null,null,8500]
[null,null,null,null,null,null,null,null,null,null,null,null,null,null,null,null,8500]
[null,null,null,null,null,null,null,null,null,null,null,null,null,null,null,null,8500]
[null,null,null,null,null,null,null,null,null,null,null,null,null,null,null,null,8500]
[null,null,null,null,null,null,null,null,null,null,null,null,null,null,null,null,8500]
[null,null,null,null,null,null,null,null,null,null,null,null,null,null,null,null,8500]
[null,null,null,null,null,null,null,null,null,null,null,null,null,null,null,null,8500]
[null,null,null,null,null,null,null,null,null,null,null,null,null,null,null,null,8500]
[null,null,null,null,null,null,null,null,null,null,null,null,null,null,null,null,8500]
[null,null,null,null,null,null,null,null,null,null,null,null,null,null,null,null,8500]
[null,null,null,null,null,null,null,null,null,null,null,null,null,null,null,null,8500]
[null,null,null,null,null,null,null,null,null,null,null,null,null,null,null,null,8500]
[null,null,null,null,null,null,null,null,null,null,null,null,null,null,null,null,8500]
[null,null,null,null,null,null,null,null,null,null,null,null,null,null,null,null,8500]
[null,null,null,null,null,null,null,null,null,null,null,null,null,null,null,null,8500]
[null,null,null,null,null,null,null,null,null,null,null,null,null,null,null,null,8500]
[null,null,null,null,null,null,null,null,null,null,null,null,null,null,null,null,8500]
[null,null,null,null,null,null,null,null,null,null,null,null,null,null,null,null,{"$f":"Q29+H219-B219","v":8500}]
[null,null,null,null,null,null,null,null,null,null,null,null,null,null,null,null,{"$f":"Q219+H220-B220","v":8500}]
[null,null,null,null,null,null,null,null,null,null,null,null,null,null,null,null,8500]
[null,null,null,null,null,null,null,null,null,null,null,null,null,null,null,null,8500]
[null,null,null,null,null,null,null,null,null,null,null,null,null,null,null,null,8500]
[null,null,null,null,null,null,null,null,null,null,null,null,null,null,null,null,8500]
[null,null,null,null,null,null,null,null,null,null,null,null,null,null,null,null,8500]
[null,null,null,null,null,null,null,null,null,null,null,null,null,null,null,null,8500]
[null,null,null,null,null,null,null,null,null,null,null,null,null,null,null,null,8500]
[null,null,null,null,null,null,null,null,null,null,null,null,null,null,null,null,8500]
[null,null,null,null,null,null,null,null,null,null,null,null,null,null,null,null,8500]
[null,null,null,null,null,null,null,null,null,null,null,null,null,null,null,null,8500]
[null,null,null,null,null,null,null,null,null,null,null,null,null,null,null,null,8500]
[null,null,null,null,null,null,null,null,null,null,null,null,null,null,null,null,8500]
[null,null,null,null,null,null,null,null,null,null,null,null,null,null,null,null,8500]
[null,null,null,null,null,null,null,null,null,null,null,null,null,null,null,null,8500]
[null,null,null,null,null,null,null,null,null,null,null,null,null,null,null,null,8500]
[null,null,null,null,null,null,null,null,null,null,null,null,null,null,null,null,8500]
[null,null,null,null,null,null,null,null,null,null,null,null,null,null,null,null,8500]
[null,null,null,null,null,null,null,null,null,null,null,null,null,null,null,null,8500]
[null,null,null,null,null,null,null,null,null,null,null,null,null,null,null,null,8500]
[null,null,null,null,null,null,null,null,null,null,null,null,null,null,null,null,8500]
[null,null,null,null,null,null,null,null,null,null,null,null,null,null,null,null,8500]
[null,null,null,null,null,null,null,null,null,null,null,null,null,null,null,null,8500]
[null,null,null,null,null,null,null,null,null,null,null,null,null,null,null,null,8500]
[null,null,null,null,null,null,null,null,null,null,null,null,null,null,null,null,8500]
[null,null,null,null,null,null,null,null,null,null,null,null,null,null,null,null,8500]
[null,null,null,null,null,null,null,null,null,null,null,null,null,null,null,null,8500]
[null,null,null,null,null,null,null,null,null,null,null,null,null,null,null,null,8500]
[null,null,null,null,null,null,null,null,null,null,null,null,null,null,null,null,8500]
["TOTAL",{"$f":"SUM(B4:B248)","v":0},null,null,null,null,{"$f":"SUM(G4:G248)","v":102000},{"$f":"SUM(H4:H248)","v":8500},{"$f":"SUM(I4:I248)","v":4950},{"$f":"SUM(J4:J248)","v":1},null,null,null,null,null,null,{"$f":"SUM(H249-B249)","v":8500}]